{"text_format":"1","workbook":"xlsx","n_sheets":3,"sheets":["シングルス","ダブルス","統括表"],"not_rendered":{"charts":0,"images":0,"macros":1,"external_links":0,"defined_names":9,"comments":0,"pivot_tables":0},"unopened":[],"bounds":{"document_bytes":16777216,"sheet_cells":100000,"rows_first":2000,"rows_last":500,"rows_between":2000,"halvings":0,"cell_chars":16384,"cell_head_chars":4096},"cells_cut":0,"cells_raw":0,"read":"whole","date_system":"1900"}

{"sheet":"シングルス","index":0,"n_rows":507,"n_cols":29,"rows_kept":507,"cut":false,"hidden":false,"merged":[[1,1,2,18],[5,18,6,18],[5,15,5,17],[6,8,6,10],[5,2,6,2],[5,3,5,7],[6,3,6,7],[5,1,6,1],[5,8,5,10],[5,11,5,12],[5,13,6,13],[5,14,6,14],[3,3,3,5]]}
[null,null,null,null,null,null,null,null,null,null,null,null,null,null,null,null,null,null,{"$f":"IF(I1=\"\",\"\",DATEDIF(DATE(P1,Q1,R1),DATE($C$4+2019,4,1),\"Y\"))","v":""}]
[null,"第2３回　全九州卓球選手権大会（ラージボールの部）　参加申込書"]
[]
[null,"令和",4,"年度",null,null,null,null,null,null,null,null,null,null,null,null,null,null,null,null,null,null,"A","B","C","D","E","F","計"]
[null,"［シングルスの部］",null,null,null,null,null,null,null,null,null,null,null,null,null,null,null,null,null,null,null,"男",{"$f":"COUNTIFS(シングルカテ,W$4,シングル性,$V5)","v":0},0,0,0,0,0,{"$f":"SUM(W5:AB5)","v":0}]
[null,null,"種目県内順位","前年度\nランキング",null,null,null,null,"種　目",null,null,"名前",null,"ふりがな","所属クラブ名","生年月日（西暦）",null,null,"年齢",null,null,"女",0,0,0,0,0,0,{"$f":"SUM(W6:AB6)","v":0}]
[null,null,null,"（例）\n男・B・３",null,null,null,null,"（例）\n男・B",null,null,"姓","名",null,null,"年","月","日",null,null,null,"計",{"$f":"SUM(W5:W6)","v":0},0,0,0,0,0,0]
[null,1,null,null,"・",null,"・",null,null,"・"]
[null,2,null,null,"・",null,"・",null,null,"・"]
[null,3,null,null,"・",null,"・",null,null,"・",null,null,null,null,null,null,null,null,""]
[null,4,null,null,"・",null,"・",null,null,"・",null,null,null,null,null,null,null,null,""]
[null,5,null,null,"・",null,"・",null,null,"・",null,null,null,null,null,null,null,null,""]
[null,6,null,null,"・",null,"・",null,null,"・",null,null,null,null,null,null,null,null,"",{"$f":"I13&K13","v":""}]
[null,7,null,null,"・",null,"・",null,null,"・",null,null,null,null,null,null,null,null,"",""]
[null,8,null,null,"・",null,"・",null,null,"・",null,null,null,null,null,null,null,null,"",""]
[null,9,null,null,"・",null,"・",null,null,"・",null,null,null,null,null,null,null,null,"",""]
[null,10,null,null,"・",null,"・",null,null,"・",null,null,null,null,null,null,null,null,"",""]
[null,11,null,null,"・",null,"・",null,null,"・",null,null,null,null,null,null,null,null,"",""]
[null,12,null,null,"・",null,"・",null,null,"・",null,null,null,null,null,null,null,null,"",""]
[null,13,null,null,"・",null,"・",null,null,"・",null,null,null,null,null,null,null,null,"",""]
[null,14,null,null,"・",null,"・",null,null,"・",null,null,null,null,null,null,null,null,"",""]
[null,15,null,null,"・",null,"・",null,null,"・",null,null,null,null,null,null,null,null,"",""]
[null,16,null,null,"・",null,"・",null,null,"・",null,null,null,null,null,null,null,null,"",""]
[null,17,null,null,"・",null,"・",null,null,"・",null,null,null,null,null,null,null,null,"",""]
[null,18,null,null,"・",null,"・",null,null,"・",null,null,null,null,null,null,null,null,"",""]
[null,19,null,null,"・",null,"・",null,null,"・",null,null,null,null,null,null,null,null,"",""]
[null,20,null,null,"・",null,"・",null,null,"・",null,null,null,null,null,null,null,null,"",""]
[null,21,null,null,"・",null,"・",null,null,"・",null,null,null,null,null,null,null,null,"",""]
[null,22,null,null,"・",null,"・",null,null,"・",null,null,null,null,null,null,null,null,"",""]
[null,23,null,null,"・",null,"・",null,null,"・",null,null,null,null,null,null,null,null,"",""]
[null,24,null,null,"・",null,"・",null,null,"・",null,null,null,null,null,null,null,null,"",""]
[null,25,null,null,"・",null,"・",null,null,"・",null,null,null,null,null,null,null,null,"",""]
[null,26,null,null,"・",null,"・",null,null,"・",null,null,null,null,null,null,null,null,"",""]
[null,27,null,null,"・",null,"・",null,null,"・",null,null,null,null,null,null,null,null,"",""]
[null,28,null,null,"・",null,"・",null,null,"・",null,null,null,null,null,null,null,null,"",""]
[null,29,null,null,"・",null,"・",null,null,"・",null,null,null,null,null,null,null,null,"",""]
[null,30,null,null,"・",null,"・",null,null,"・",null,null,null,null,null,null,null,null,"",""]
[null,31,null,null,"・",null,"・",null,null,"・",null,null,null,null,null,null,null,null,"",""]
[null,32,null,null,"・",null,"・",null,null,"・",null,null,null,null,null,null,null,null,"",""]
[null,33,null,null,"・",null,"・",null,null,"・",null,null,null,null,null,null,null,null,"",""]
[null,34,null,null,"・",null,"・",null,null,"・",null,null,null,null,null,null,null,null,"",""]
[null,35,null,null,"・",null,"・",null,null,"・",null,null,null,null,null,null,null,null,"",""]
[null,36,null,null,"・",null,"・",null,null,"・",null,null,null,null,null,null,null,null,"",""]
[null,37,null,null,"・",null,"・",null,null,"・",null,null,null,null,null,null,null,null,"",""]
[null,38,null,null,"・",null,"・",null,null,"・",null,null,null,null,null,null,null,null,"",""]
[null,39,null,null,"・",null,"・",null,null,"・",null,null,null,null,null,null,null,null,"",""]
[null,40,null,null,"・",null,"・",null,null,"・",null,null,null,null,null,null,null,null,"",""]
[null,41,null,null,"・",null,"・",null,null,"・",null,null,null,null,null,null,null,null,"",""]
[null,42,null,null,"・",null,"・",null,null,"・",null,null,null,null,null,null,null,null,"",""]
[null,43,null,null,"・",null,"・",null,null,"・",null,null,null,null,null,null,null,null,"",""]
[null,44,null,null,"・",null,"・",null,null,"・",null,null,null,null,null,null,null,null,"",""]
[null,45,null,null,"・",null,"・",null,null,"・",null,null,null,null,null,null,null,null,"",""]
[null,46,null,null,"・",null,"・",null,null,"・",null,null,null,null,null,null,null,null,"",""]
[null,47,null,null,"・",null,"・",null,null,"・",null,null,null,null,null,null,null,null,"",""]
[null,48,null,null,"・",null,"・",null,null,"・",null,null,null,null,null,null,null,null,"",""]
[null,49,null,null,"・",null,"・",null,null,"・",null,null,null,null,null,null,null,null,"",""]
[null,50,null,null,"・",null,"・",null,null,"・",null,null,null,null,null,null,null,null,"",""]
[null,51,null,null,"・",null,"・",null,null,"・",null,null,null,null,null,null,null,null,"",""]
[null,52,null,null,"・",null,"・",null,null,"・",null,null,null,null,null,null,null,null,"",""]
[null,53,null,null,"・",null,"・",null,null,"・",null,null,null,null,null,null,null,null,"",""]
[null,54,null,null,"・",null,"・",null,null,"・",null,null,null,null,null,null,null,null,"",""]
[null,55,null,null,"・",null,"・",null,null,"・",null,null,null,null,null,null,null,null,"",""]
[null,56,null,null,"・",null,"・",null,null,"・",null,null,null,null,null,null,null,null,"",""]
[null,57,null,null,"・",null,"・",null,null,"・",null,null,null,null,null,null,null,null,"",""]
[null,58,null,null,"・",null,"・",null,null,"・",null,null,null,null,null,null,null,null,"",""]
[null,59,null,null,"・",null,"・",null,null,"・",null,null,null,null,null,null,null,null,"",""]
[null,60,null,null,"・",null,"・",null,null,"・",null,null,null,null,null,null,null,null,"",""]
[null,61,null,null,"・",null,"・",null,null,"・",null,null,null,null,null,null,null,null,"",""]
[null,62,null,null,"・",null,"・",null,null,"・",null,null,null,null,null,null,null,null,"",""]
[null,63,null,null,"・",null,"・",null,null,"・",null,null,null,null,null,null,null,null,"",""]
[null,64,null,null,"・",null,"・",null,null,"・",null,null,null,null,null,null,null,null,"",""]
[null,65,null,null,"・",null,"・",null,null,"・",null,null,null,null,null,null,null,null,"",""]
[null,66,null,null,"・",null,"・",null,null,"・",null,null,null,null,null,null,null,null,"",{"$f":"I73&K73","v":""}]
[null,67,null,null,"・",null,"・",null,null,"・",null,null,null,null,null,null,null,null,"",""]
[null,68,null,null,"・",null,"・",null,null,"・",null,null,null,null,null,null,null,null,"",""]
[null,69,null,null,"・",null,"・",null,null,"・",null,null,null,null,null,null,null,null,"",""]
[null,70,null,null,"・",null,"・",null,null,"・",null,null,null,null,null,null,null,null,"",""]
[null,71,null,null,"・",null,"・",null,null,"・",null,null,null,null,null,null,null,null,"",""]
[null,72,null,null,"・",null,"・",null,null,"・",null,null,null,null,null,null,null,null,"",""]
[null,73,null,null,"・",null,"・",null,null,"・",null,null,null,null,null,null,null,null,"",""]
[null,74,null,null,"・",null,"・",null,null,"・",null,null,null,null,null,null,null,null,"",""]
[null,75,null,null,"・",null,"・",null,null,"・",null,null,null,null,null,null,null,null,"",""]
[null,76,null,null,"・",null,"・",null,null,"・",null,null,null,null,null,null,null,null,"",""]
[null,77,null,null,"・",null,"・",null,null,"・",null,null,null,null,null,null,null,null,"",""]
[null,78,null,null,"・",null,"・",null,null,"・",null,null,null,null,null,null,null,null,"",""]
[null,79,null,null,"・",null,"・",null,null,"・",null,null,null,null,null,null,null,null,"",""]
[null,80,null,null,"・",null,"・",null,null,"・",null,null,null,null,null,null,null,null,"",""]
[null,81,null,null,"・",null,"・",null,null,"・",null,null,null,null,null,null,null,null,"",""]
[null,82,null,null,"・",null,"・",null,null,"・",null,null,null,null,null,null,null,null,"",""]
[null,83,null,null,"・",null,"・",null,null,"・",null,null,null,null,null,null,null,null,"",""]
[null,84,null,null,"・",null,"・",null,null,"・",null,null,null,null,null,null,null,null,"",""]
[null,85,null,null,"・",null,"・",null,null,"・",null,null,null,null,null,null,null,null,"",""]
[null,86,null,null,"・",null,"・",null,null,"・",null,null,null,null,null,null,null,null,"",""]
[null,87,null,null,"・",null,"・",null,null,"・",null,null,null,null,null,null,null,null,"",""]
[null,88,null,null,"・",null,"・",null,null,"・",null,null,null,null,null,null,null,null,"",""]
[null,89,null,null,"・",null,"・",null,null,"・",null,null,null,null,null,null,null,null,"",""]
[null,90,null,null,"・",null,"・",null,null,"・",null,null,null,null,null,null,null,null,"",""]
[null,91,null,null,"・",null,"・",null,null,"・",null,null,null,null,null,null,null,null,"",""]
[null,92,null,null,"・",null,"・",null,null,"・",null,null,null,null,null,null,null,null,"",""]
[null,93,null,null,"・",null,"・",null,null,"・",null,null,null,null,null,null,null,null,"",""]
[null,94,null,null,"・",null,"・",null,null,"・",null,null,null,null,null,null,null,null,"",""]
[null,95,null,null,"・",null,"・",null,null,"・",null,null,null,null,null,null,null,null,"",""]
[null,96,null,null,"・",null,"・",null,null,"・",null,null,null,null,null,null,null,null,"",""]
[null,97,null,null,"・",null,"・",null,null,"・",null,null,null,null,null,null,null,null,"",""]
[null,98,null,null,"・",null,"・",null,null,"・",null,null,null,null,null,null,null,null,"",""]
[null,99,null,null,"・",null,"・",null,null,"・",null,null,null,null,null,null,null,null,"",""]
[null,100,null,null,"・",null,"・",null,null,"・",null,null,null,null,null,null,null,null,"",""]
[null,101,null,null,"・",null,"・",null,null,"・",null,null,null,null,null,null,null,null,"",""]
[null,102,null,null,"・",null,"・",null,null,"・",null,null,null,null,null,null,null,null,"",""]
[null,103,null,null,"・",null,"・",null,null,"・",null,null,null,null,null,null,null,null,"",""]
[null,104,null,null,"・",null,"・",null,null,"・",null,null,null,null,null,null,null,null,"",""]
[null,105,null,null,"・",null,"・",null,null,"・",null,null,null,null,null,null,null,null,"",""]
[null,106,null,null,"・",null,"・",null,null,"・",null,null,null,null,null,null,null,null,"",""]
[null,107,null,null,"・",null,"・",null,null,"・",null,null,null,null,null,null,null,null,"",""]
[null,108,null,null,"・",null,"・",null,null,"・",null,null,null,null,null,null,null,null,"",""]
[null,109,null,null,"・",null,"・",null,null,"・",null,null,null,null,null,null,null,null,"",""]
[null,110,null,null,"・",null,"・",null,null,"・",null,null,null,null,null,null,null,null,"",""]
[null,111,null,null,"・",null,"・",null,null,"・",null,null,null,null,null,null,null,null,"",""]
[null,112,null,null,"・",null,"・",null,null,"・",null,null,null,null,null,null,null,null,"",""]
[null,113,null,null,"・",null,"・",null,null,"・",null,null,null,null,null,null,null,null,"",""]
[null,114,null,null,"・",null,"・",null,null,"・",null,null,null,null,null,null,null,null,"",""]
[null,115,null,null,"・",null,"・",null,null,"・",null,null,null,null,null,null,null,null,"",""]
[null,116,null,null,"・",null,"・",null,null,"・",null,null,null,null,null,null,null,null,"",""]
[null,117,null,null,"・",null,"・",null,null,"・",null,null,null,null,null,null,null,null,"",""]
[null,118,null,null,"・",null,"・",null,null,"・",null,null,null,null,null,null,null,null,"",""]
[null,119,null,null,"・",null,"・",null,null,"・",null,null,null,null,null,null,null,null,"",""]
[null,120,null,null,"・",null,"・",null,null,"・",null,null,null,null,null,null,null,null,"",""]
[null,121,null,null,"・",null,"・",null,null,"・",null,null,null,null,null,null,null,null,"",""]
[null,122,null,null,"・",null,"・",null,null,"・",null,null,null,null,null,null,null,null,"",""]
[null,123,null,null,"・",null,"・",null,null,"・",null,null,null,null,null,null,null,null,"",""]
[null,124,null,null,"・",null,"・",null,null,"・",null,null,null,null,null,null,null,null,"",""]
[null,125,null,null,"・",null,"・",null,null,"・",null,null,null,null,null,null,null,null,"",""]
[null,126,null,null,"・",null,"・",null,null,"・",null,null,null,null,null,null,null,null,"",""]
[null,127,null,null,"・",null,"・",null,null,"・",null,null,null,null,null,null,null,null,"",""]
[null,128,null,null,"・",null,"・",null,null,"・",null,null,null,null,null,null,null,null,"",""]
[null,129,null,null,"・",null,"・",null,null,"・",null,null,null,null,null,null,null,null,"",""]
[null,130,null,null,"・",null,"・",null,null,"・",null,null,null,null,null,null,null,null,"",{"$f":"I137&K137","v":""}]
[null,131,null,null,"・",null,"・",null,null,"・",null,null,null,null,null,null,null,null,"",""]
[null,132,null,null,"・",null,"・",null,null,"・",null,null,null,null,null,null,null,null,"",""]
[null,133,null,null,"・",null,"・",null,null,"・",null,null,null,null,null,null,null,null,"",""]
[null,134,null,null,"・",null,"・",null,null,"・",null,null,null,null,null,null,null,null,"",""]
[null,135,null,null,"・",null,"・",null,null,"・",null,null,null,null,null,null,null,null,"",""]
[null,136,null,null,"・",null,"・",null,null,"・",null,null,null,null,null,null,null,null,"",""]
[null,137,null,null,"・",null,"・",null,null,"・",null,null,null,null,null,null,null,null,"",""]
[null,138,null,null,"・",null,"・",null,null,"・",null,null,null,null,null,null,null,null,"",""]
[null,139,null,null,"・",null,"・",null,null,"・",null,null,null,null,null,null,null,null,"",""]
[null,140,null,null,"・",null,"・",null,null,"・",null,null,null,null,null,null,null,null,"",""]
[null,141,null,null,"・",null,"・",null,null,"・",null,null,null,null,null,null,null,null,"",""]
[null,142,null,null,"・",null,"・",null,null,"・",null,null,null,null,null,null,null,null,"",""]
[null,143,null,null,"・",null,"・",null,null,"・",null,null,null,null,null,null,null,null,"",""]
[null,144,null,null,"・",null,"・",null,null,"・",null,null,null,null,null,null,null,null,"",""]
[null,145,null,null,"・",null,"・",null,null,"・",null,null,null,null,null,null,null,null,"",""]
[null,146,null,null,"・",null,"・",null,null,"・",null,null,null,null,null,null,null,null,"",""]
[null,147,null,null,"・",null,"・",null,null,"・",null,null,null,null,null,null,null,null,"",""]
[null,148,null,null,"・",null,"・",null,null,"・",null,null,null,null,null,null,null,null,"",""]
[null,149,null,null,"・",null,"・",null,null,"・",null,null,null,null,null,null,null,null,"",""]
[null,150,null,null,"・",null,"・",null,null,"・",null,null,null,null,null,null,null,null,"",""]
[null,151,null,null,"・",null,"・",null,null,"・",null,null,null,null,null,null,null,null,"",""]
[null,152,null,null,"・",null,"・",null,null,"・",null,null,null,null,null,null,null,null,"",""]
[null,153,null,null,"・",null,"・",null,null,"・",null,null,null,null,null,null,null,null,"",""]
[null,154,null,null,"・",null,"・",null,null,"・",null,null,null,null,null,null,null,null,"",""]
[null,155,null,null,"・",null,"・",null,null,"・",null,null,null,null,null,null,null,null,"",""]
[null,156,null,null,"・",null,"・",null,null,"・",null,null,null,null,null,null,null,null,"",""]
[null,157,null,null,"・",null,"・",null,null,"・",null,null,null,null,null,null,null,null,"",""]
[null,158,null,null,"・",null,"・",null,null,"・",null,null,null,null,null,null,null,null,"",""]
[null,159,null,null,"・",null,"・",null,null,"・",null,null,null,null,null,null,null,null,"",""]
[null,160,null,null,"・",null,"・",null,null,"・",null,null,null,null,null,null,null,null,"",""]
[null,161,null,null,"・",null,"・",null,null,"・",null,null,null,null,null,null,null,null,"",""]
[null,162,null,null,"・",null,"・",null,null,"・",null,null,null,null,null,null,null,null,"",""]
[null,163,null,null,"・",null,"・",null,null,"・",null,null,null,null,null,null,null,null,"",""]
[null,164,null,null,"・",null,"・",null,null,"・",null,null,null,null,null,null,null,null,"",""]
[null,165,null,null,"・",null,"・",null,null,"・",null,null,null,null,null,null,null,null,"",""]
[null,166,null,null,"・",null,"・",null,null,"・",null,null,null,null,null,null,null,null,"",""]
[null,167,null,null,"・",null,"・",null,null,"・",null,null,null,null,null,null,null,null,"",""]
[null,168,null,null,"・",null,"・",null,null,"・",null,null,null,null,null,null,null,null,"",""]
[null,169,null,null,"・",null,"・",null,null,"・",null,null,null,null,null,null,null,null,"",""]
[null,170,null,null,"・",null,"・",null,null,"・",null,null,null,null,null,null,null,null,"",""]
[null,171,null,null,"・",null,"・",null,null,"・",null,null,null,null,null,null,null,null,"",""]
[null,172,null,null,"・",null,"・",null,null,"・",null,null,null,null,null,null,null,null,"",""]
[null,173,null,null,"・",null,"・",null,null,"・",null,null,null,null,null,null,null,null,"",""]
[null,174,null,null,"・",null,"・",null,null,"・",null,null,null,null,null,null,null,null,"",""]
[null,175,null,null,"・",null,"・",null,null,"・",null,null,null,null,null,null,null,null,"",""]
[null,176,null,null,"・",null,"・",null,null,"・",null,null,null,null,null,null,null,null,"",""]
[null,177,null,null,"・",null,"・",null,null,"・",null,null,null,null,null,null,null,null,"",""]
[null,178,null,null,"・",null,"・",null,null,"・",null,null,null,null,null,null,null,null,"",""]
[null,179,null,null,"・",null,"・",null,null,"・",null,null,null,null,null,null,null,null,"",""]
[null,180,null,null,"・",null,"・",null,null,"・",null,null,null,null,null,null,null,null,"",""]
[null,181,null,null,"・",null,"・",null,null,"・",null,null,null,null,null,null,null,null,"",""]
[null,182,null,null,"・",null,"・",null,null,"・",null,null,null,null,null,null,null,null,"",""]
[null,183,null,null,"・",null,"・",null,null,"・",null,null,null,null,null,null,null,null,"",""]
[null,184,null,null,"・",null,"・",null,null,"・",null,null,null,null,null,null,null,null,"",""]
[null,185,null,null,"・",null,"・",null,null,"・",null,null,null,null,null,null,null,null,"",""]
[null,186,null,null,"・",null,"・",null,null,"・",null,null,null,null,null,null,null,null,"",""]
[null,187,null,null,"・",null,"・",null,null,"・",null,null,null,null,null,null,null,null,"",""]
[null,188,null,null,"・",null,"・",null,null,"・",null,null,null,null,null,null,null,null,"",""]
[null,189,null,null,"・",null,"・",null,null,"・",null,null,null,null,null,null,null,null,"",""]
[null,190,null,null,"・",null,"・",null,null,"・",null,null,null,null,null,null,null,null,"",""]
[null,191,null,null,"・",null,"・",null,null,"・",null,null,null,null,null,null,null,null,"",""]
[null,192,null,null,"・",null,"・",null,null,"・",null,null,null,null,null,null,null,null,"",""]
[null,193,null,null,"・",null,"・",null,null,"・",null,null,null,null,null,null,null,null,"",""]
[null,194,null,null,"・",null,"・",null,null,"・",null,null,null,null,null,null,null,null,"",{"$f":"I201&K201","v":""}]
[null,195,null,null,"・",null,"・",null,null,"・",null,null,null,null,null,null,null,null,"",""]
[null,196,null,null,"・",null,"・",null,null,"・",null,null,null,null,null,null,null,null,"",""]
[null,197,null,null,"・",null,"・",null,null,"・",null,null,null,null,null,null,null,null,"",""]
[null,198,null,null,"・",null,"・",null,null,"・",null,null,null,null,null,null,null,null,"",""]
[null,199,null,null,"・",null,"・",null,null,"・",null,null,null,null,null,null,null,null,"",""]
[null,200,null,null,"・",null,"・",null,null,"・",null,null,null,null,null,null,null,null,"",""]
[null,201,null,null,"・",null,"・",null,null,"・",null,null,null,null,null,null,null,null,"",""]
[null,202,null,null,"・",null,"・",null,null,"・",null,null,null,null,null,null,null,null,"",""]
[null,203,null,null,"・",null,"・",null,null,"・",null,null,null,null,null,null,null,null,"",""]
[null,204,null,null,"・",null,"・",null,null,"・",null,null,null,null,null,null,null,null,"",""]
[null,205,null,null,"・",null,"・",null,null,"・",null,null,null,null,null,null,null,null,"",""]
[null,206,null,null,"・",null,"・",null,null,"・",null,null,null,null,null,null,null,null,"",""]
[null,207,null,null,"・",null,"・",null,null,"・",null,null,null,null,null,null,null,null,"",""]
[null,208,null,null,"・",null,"・",null,null,"・",null,null,null,null,null,null,null,null,"",""]
[null,209,null,null,"・",null,"・",null,null,"・",null,null,null,null,null,null,null,null,"",""]
[null,210,null,null,"・",null,"・",null,null,"・",null,null,null,null,null,null,null,null,"",""]
[null,211,null,null,"・",null,"・",null,null,"・",null,null,null,null,null,null,null,null,"",""]
[null,212,null,null,"・",null,"・",null,null,"・",null,null,null,null,null,null,null,null,"",""]
[null,213,null,null,"・",null,"・",null,null,"・",null,null,null,null,null,null,null,null,"",""]
[null,214,null,null,"・",null,"・",null,null,"・",null,null,null,null,null,null,null,null,"",""]
[null,215,null,null,"・",null,"・",null,null,"・",null,null,null,null,null,null,null,null,"",""]
[null,216,null,null,"・",null,"・",null,null,"・",null,null,null,null,null,null,null,null,"",""]
[null,217,null,null,"・",null,"・",null,null,"・",null,null,null,null,null,null,null,null,"",""]
[null,218,null,null,"・",null,"・",null,null,"・",null,null,null,null,null,null,null,null,"",""]
[null,219,null,null,"・",null,"・",null,null,"・",null,null,null,null,null,null,null,null,"",""]
[null,220,null,null,"・",null,"・",null,null,"・",null,null,null,null,null,null,null,null,"",""]
[null,221,null,null,"・",null,"・",null,null,"・",null,null,null,null,null,null,null,null,"",""]
[null,222,null,null,"・",null,"・",null,null,"・",null,null,null,null,null,null,null,null,"",""]
[null,223,null,null,"・",null,"・",null,null,"・",null,null,null,null,null,null,null,null,"",""]
[null,224,null,null,"・",null,"・",null,null,"・",null,null,null,null,null,null,null,null,"",""]
[null,225,null,null,"・",null,"・",null,null,"・",null,null,null,null,null,null,null,null,"",""]
[null,226,null,null,"・",null,"・",null,null,"・",null,null,null,null,null,null,null,null,"",""]
[null,227,null,null,"・",null,"・",null,null,"・",null,null,null,null,null,null,null,null,"",""]
[null,228,null,null,"・",null,"・",null,null,"・",null,null,null,null,null,null,null,null,"",""]
[null,229,null,null,"・",null,"・",null,null,"・",null,null,null,null,null,null,null,null,"",""]
[null,230,null,null,"・",null,"・",null,null,"・",null,null,null,null,null,null,null,null,"",""]
[null,231,null,null,"・",null,"・",null,null,"・",null,null,null,null,null,null,null,null,"",""]
[null,232,null,null,"・",null,"・",null,null,"・",null,null,null,null,null,null,null,null,"",""]
[null,233,null,null,"・",null,"・",null,null,"・",null,null,null,null,null,null,null,null,"",""]
[null,234,null,null,"・",null,"・",null,null,"・",null,null,null,null,null,null,null,null,"",""]
[null,235,null,null,"・",null,"・",null,null,"・",null,null,null,null,null,null,null,null,"",""]
[null,236,null,null,"・",null,"・",null,null,"・",null,null,null,null,null,null,null,null,"",""]
[null,237,null,null,"・",null,"・",null,null,"・",null,null,null,null,null,null,null,null,"",""]
[null,238,null,null,"・",null,"・",null,null,"・",null,null,null,null,null,null,null,null,"",""]
[null,239,null,null,"・",null,"・",null,null,"・",null,null,null,null,null,null,null,null,"",""]
[null,240,null,null,"・",null,"・",null,null,"・",null,null,null,null,null,null,null,null,"",""]
[null,241,null,null,"・",null,"・",null,null,"・",null,null,null,null,null,null,null,null,"",""]
[null,242,null,null,"・",null,"・",null,null,"・",null,null,null,null,null,null,null,null,"",""]
[null,243,null,null,"・",null,"・",null,null,"・",null,null,null,null,null,null,null,null,"",""]
[null,244,null,null,"・",null,"・",null,null,"・",null,null,null,null,null,null,null,null,"",""]
[null,245,null,null,"・",null,"・",null,null,"・",null,null,null,null,null,null,null,null,"",""]
[null,246,null,null,"・",null,"・",null,null,"・",null,null,null,null,null,null,null,null,"",""]
[null,247,null,null,"・",null,"・",null,null,"・",null,null,null,null,null,null,null,null,"",""]
[null,248,null,null,"・",null,"・",null,null,"・",null,null,null,null,null,null,null,null,"",""]
[null,249,null,null,"・",null,"・",null,null,"・",null,null,null,null,null,null,null,null,"",""]
[null,250,null,null,"・",null,"・",null,null,"・",null,null,null,null,null,null,null,null,"",""]
[null,251,null,null,"・",null,"・",null,null,"・",null,null,null,null,null,null,null,null,"",""]
[null,252,null,null,"・",null,"・",null,null,"・",null,null,null,null,null,null,null,null,"",""]
[null,253,null,null,"・",null,"・",null,null,"・",null,null,null,null,null,null,null,null,"",""]
[null,254,null,null,"・",null,"・",null,null,"・",null,null,null,null,null,null,null,null,"",""]
[null,255,null,null,"・",null,"・",null,null,"・",null,null,null,null,null,null,null,null,"",""]
[null,256,null,null,"・",null,"・",null,null,"・",null,null,null,null,null,null,null,null,"",""]
[null,257,null,null,"・",null,"・",null,null,"・",null,null,null,null,null,null,null,null,"",""]
[null,258,null,null,"・",null,"・",null,null,"・",null,null,null,null,null,null,null,null,"",{"$f":"I265&K265","v":""}]
[null,259,null,null,"・",null,"・",null,null,"・",null,null,null,null,null,null,null,null,"",""]
[null,260,null,null,"・",null,"・",null,null,"・",null,null,null,null,null,null,null,null,"",""]
[null,261,null,null,"・",null,"・",null,null,"・",null,null,null,null,null,null,null,null,"",""]
[null,262,null,null,"・",null,"・",null,null,"・",null,null,null,null,null,null,null,null,"",""]
[null,263,null,null,"・",null,"・",null,null,"・",null,null,null,null,null,null,null,null,"",""]
[null,264,null,null,"・",null,"・",null,null,"・",null,null,null,null,null,null,null,null,"",""]
[null,265,null,null,"・",null,"・",null,null,"・",null,null,null,null,null,null,null,null,"",""]
[null,266,null,null,"・",null,"・",null,null,"・",null,null,null,null,null,null,null,null,"",""]
[null,267,null,null,"・",null,"・",null,null,"・",null,null,null,null,null,null,null,null,"",""]
[null,268,null,null,"・",null,"・",null,null,"・",null,null,null,null,null,null,null,null,"",""]
[null,269,null,null,"・",null,"・",null,null,"・",null,null,null,null,null,null,null,null,"",""]
[null,270,null,null,"・",null,"・",null,null,"・",null,null,null,null,null,null,null,null,"",""]
[null,271,null,null,"・",null,"・",null,null,"・",null,null,null,null,null,null,null,null,"",""]
[null,272,null,null,"・",null,"・",null,null,"・",null,null,null,null,null,null,null,null,"",""]
[null,273,null,null,"・",null,"・",null,null,"・",null,null,null,null,null,null,null,null,"",""]
[null,274,null,null,"・",null,"・",null,null,"・",null,null,null,null,null,null,null,null,"",""]
[null,275,null,null,"・",null,"・",null,null,"・",null,null,null,null,null,null,null,null,"",""]
[null,276,null,null,"・",null,"・",null,null,"・",null,null,null,null,null,null,null,null,"",""]
[null,277,null,null,"・",null,"・",null,null,"・",null,null,null,null,null,null,null,null,"",""]
[null,278,null,null,"・",null,"・",null,null,"・",null,null,null,null,null,null,null,null,"",""]
[null,279,null,null,"・",null,"・",null,null,"・",null,null,null,null,null,null,null,null,"",""]
[null,280,null,null,"・",null,"・",null,null,"・",null,null,null,null,null,null,null,null,"",""]
[null,281,null,null,"・",null,"・",null,null,"・",null,null,null,null,null,null,null,null,"",""]
[null,282,null,null,"・",null,"・",null,null,"・",null,null,null,null,null,null,null,null,"",""]
[null,283,null,null,"・",null,"・",null,null,"・",null,null,null,null,null,null,null,null,"",""]
[null,284,null,null,"・",null,"・",null,null,"・",null,null,null,null,null,null,null,null,"",""]
[null,285,null,null,"・",null,"・",null,null,"・",null,null,null,null,null,null,null,null,"",""]
[null,286,null,null,"・",null,"・",null,null,"・",null,null,null,null,null,null,null,null,"",""]
[null,287,null,null,"・",null,"・",null,null,"・",null,null,null,null,null,null,null,null,"",""]
[null,288,null,null,"・",null,"・",null,null,"・",null,null,null,null,null,null,null,null,"",""]
[null,289,null,null,"・",null,"・",null,null,"・",null,null,null,null,null,null,null,null,"",""]
[null,290,null,null,"・",null,"・",null,null,"・",null,null,null,null,null,null,null,null,"",""]
[null,291,null,null,"・",null,"・",null,null,"・",null,null,null,null,null,null,null,null,"",""]
[null,292,null,null,"・",null,"・",null,null,"・",null,null,null,null,null,null,null,null,"",""]
[null,293,null,null,"・",null,"・",null,null,"・",null,null,null,null,null,null,null,null,"",""]
[null,294,null,null,"・",null,"・",null,null,"・",null,null,null,null,null,null,null,null,"",""]
[null,295,null,null,"・",null,"・",null,null,"・",null,null,null,null,null,null,null,null,"",""]
[null,296,null,null,"・",null,"・",null,null,"・",null,null,null,null,null,null,null,null,"",""]
[null,297,null,null,"・",null,"・",null,null,"・",null,null,null,null,null,null,null,null,"",""]
[null,298,null,null,"・",null,"・",null,null,"・",null,null,null,null,null,null,null,null,"",""]
[null,299,null,null,"・",null,"・",null,null,"・",null,null,null,null,null,null,null,null,"",""]
[null,300,null,null,"・",null,"・",null,null,"・",null,null,null,null,null,null,null,null,"",""]
[null,301,null,null,"・",null,"・",null,null,"・",null,null,null,null,null,null,null,null,"",""]
[null,302,null,null,"・",null,"・",null,null,"・",null,null,null,null,null,null,null,null,"",""]
[null,303,null,null,"・",null,"・",null,null,"・",null,null,null,null,null,null,null,null,"",""]
[null,304,null,null,"・",null,"・",null,null,"・",null,null,null,null,null,null,null,null,"",""]
[null,305,null,null,"・",null,"・",null,null,"・",null,null,null,null,null,null,null,null,"",""]
[null,306,null,null,"・",null,"・",null,null,"・",null,null,null,null,null,null,null,null,"",""]
[null,307,null,null,"・",null,"・",null,null,"・",null,null,null,null,null,null,null,null,"",""]
[null,308,null,null,"・",null,"・",null,null,"・",null,null,null,null,null,null,null,null,"",""]
[null,309,null,null,"・",null,"・",null,null,"・",null,null,null,null,null,null,null,null,"",""]
[null,310,null,null,"・",null,"・",null,null,"・",null,null,null,null,null,null,null,null,"",""]
[null,311,null,null,"・",null,"・",null,null,"・",null,null,null,null,null,null,null,null,"",""]
[null,312,null,null,"・",null,"・",null,null,"・",null,null,null,null,null,null,null,null,"",""]
[null,313,null,null,"・",null,"・",null,null,"・",null,null,null,null,null,null,null,null,"",""]
[null,314,null,null,"・",null,"・",null,null,"・",null,null,null,null,null,null,null,null,"",""]
[null,315,null,null,"・",null,"・",null,null,"・",null,null,null,null,null,null,null,null,"",""]
[null,316,null,null,"・",null,"・",null,null,"・",null,null,null,null,null,null,null,null,"",""]
[null,317,null,null,"・",null,"・",null,null,"・",null,null,null,null,null,null,null,null,"",""]
[null,318,null,null,"・",null,"・",null,null,"・",null,null,null,null,null,null,null,null,"",""]
[null,319,null,null,"・",null,"・",null,null,"・",null,null,null,null,null,null,null,null,"",""]
[null,320,null,null,"・",null,"・",null,null,"・",null,null,null,null,null,null,null,null,"",""]
[null,321,null,null,"・",null,"・",null,null,"・",null,null,null,null,null,null,null,null,"",""]
[null,322,null,null,"・",null,"・",null,null,"・",null,null,null,null,null,null,null,null,"",{"$f":"I329&K329","v":""}]
[null,323,null,null,"・",null,"・",null,null,"・",null,null,null,null,null,null,null,null,"",""]
[null,324,null,null,"・",null,"・",null,null,"・",null,null,null,null,null,null,null,null,"",""]
[null,325,null,null,"・",null,"・",null,null,"・",null,null,null,null,null,null,null,null,"",""]
[null,326,null,null,"・",null,"・",null,null,"・",null,null,null,null,null,null,null,null,"",""]
[null,327,null,null,"・",null,"・",null,null,"・",null,null,null,null,null,null,null,null,"",""]
[null,328,null,null,"・",null,"・",null,null,"・",null,null,null,null,null,null,null,null,"",""]
[null,329,null,null,"・",null,"・",null,null,"・",null,null,null,null,null,null,null,null,"",""]
[null,330,null,null,"・",null,"・",null,null,"・",null,null,null,null,null,null,null,null,"",""]
[null,331,null,null,"・",null,"・",null,null,"・",null,null,null,null,null,null,null,null,"",""]
[null,332,null,null,"・",null,"・",null,null,"・",null,null,null,null,null,null,null,null,"",""]
[null,333,null,null,"・",null,"・",null,null,"・",null,null,null,null,null,null,null,null,"",""]
[null,334,null,null,"・",null,"・",null,null,"・",null,null,null,null,null,null,null,null,"",""]
[null,335,null,null,"・",null,"・",null,null,"・",null,null,null,null,null,null,null,null,"",""]
[null,336,null,null,"・",null,"・",null,null,"・",null,null,null,null,null,null,null,null,"",""]
[null,337,null,null,"・",null,"・",null,null,"・",null,null,null,null,null,null,null,null,"",""]
[null,338,null,null,"・",null,"・",null,null,"・",null,null,null,null,null,null,null,null,"",""]
[null,339,null,null,"・",null,"・",null,null,"・",null,null,null,null,null,null,null,null,"",""]
[null,340,null,null,"・",null,"・",null,null,"・",null,null,null,null,null,null,null,null,"",""]
[null,341,null,null,"・",null,"・",null,null,"・",null,null,null,null,null,null,null,null,"",""]
[null,342,null,null,"・",null,"・",null,null,"・",null,null,null,null,null,null,null,null,"",""]
[null,343,null,null,"・",null,"・",null,null,"・",null,null,null,null,null,null,null,null,"",""]
[null,344,null,null,"・",null,"・",null,null,"・",null,null,null,null,null,null,null,null,"",""]
[null,345,null,null,"・",null,"・",null,null,"・",null,null,null,null,null,null,null,null,"",""]
[null,346,null,null,"・",null,"・",null,null,"・",null,null,null,null,null,null,null,null,"",""]
[null,347,null,null,"・",null,"・",null,null,"・",null,null,null,null,null,null,null,null,"",""]
[null,348,null,null,"・",null,"・",null,null,"・",null,null,null,null,null,null,null,null,"",""]
[null,349,null,null,"・",null,"・",null,null,"・",null,null,null,null,null,null,null,null,"",""]
[null,350,null,null,"・",null,"・",null,null,"・",null,null,null,null,null,null,null,null,"",""]
[null,351,null,null,"・",null,"・",null,null,"・",null,null,null,null,null,null,null,null,"",""]
[null,352,null,null,"・",null,"・",null,null,"・",null,null,null,null,null,null,null,null,"",""]
[null,353,null,null,"・",null,"・",null,null,"・",null,null,null,null,null,null,null,null,"",""]
[null,354,null,null,"・",null,"・",null,null,"・",null,null,null,null,null,null,null,null,"",""]
[null,355,null,null,"・",null,"・",null,null,"・",null,null,null,null,null,null,null,null,"",""]
[null,356,null,null,"・",null,"・",null,null,"・",null,null,null,null,null,null,null,null,"",""]
[null,357,null,null,"・",null,"・",null,null,"・",null,null,null,null,null,null,null,null,"",""]
[null,358,null,null,"・",null,"・",null,null,"・",null,null,null,null,null,null,null,null,"",""]
[null,359,null,null,"・",null,"・",null,null,"・",null,null,null,null,null,null,null,null,"",""]
[null,360,null,null,"・",null,"・",null,null,"・",null,null,null,null,null,null,null,null,"",""]
[null,361,null,null,"・",null,"・",null,null,"・",null,null,null,null,null,null,null,null,"",""]
[null,362,null,null,"・",null,"・",null,null,"・",null,null,null,null,null,null,null,null,"",""]
[null,363,null,null,"・",null,"・",null,null,"・",null,null,null,null,null,null,null,null,"",""]
[null,364,null,null,"・",null,"・",null,null,"・",null,null,null,null,null,null,null,null,"",""]
[null,365,null,null,"・",null,"・",null,null,"・",null,null,null,null,null,null,null,null,"",""]
[null,366,null,null,"・",null,"・",null,null,"・",null,null,null,null,null,null,null,null,"",""]
[null,367,null,null,"・",null,"・",null,null,"・",null,null,null,null,null,null,null,null,"",""]
[null,368,null,null,"・",null,"・",null,null,"・",null,null,null,null,null,null,null,null,"",""]
[null,369,null,null,"・",null,"・",null,null,"・",null,null,null,null,null,null,null,null,"",""]
[null,370,null,null,"・",null,"・",null,null,"・",null,null,null,null,null,null,null,null,"",""]
[null,371,null,null,"・",null,"・",null,null,"・",null,null,null,null,null,null,null,null,"",""]
[null,372,null,null,"・",null,"・",null,null,"・",null,null,null,null,null,null,null,null,"",""]
[null,373,null,null,"・",null,"・",null,null,"・",null,null,null,null,null,null,null,null,"",""]
[null,374,null,null,"・",null,"・",null,null,"・",null,null,null,null,null,null,null,null,"",""]
[null,375,null,null,"・",null,"・",null,null,"・",null,null,null,null,null,null,null,null,"",""]
[null,376,null,null,"・",null,"・",null,null,"・",null,null,null,null,null,null,null,null,"",""]
[null,377,null,null,"・",null,"・",null,null,"・",null,null,null,null,null,null,null,null,"",""]
[null,378,null,null,"・",null,"・",null,null,"・",null,null,null,null,null,null,null,null,"",""]
[null,379,null,null,"・",null,"・",null,null,"・",null,null,null,null,null,null,null,null,"",""]
[null,380,null,null,"・",null,"・",null,null,"・",null,null,null,null,null,null,null,null,"",""]
[null,381,null,null,"・",null,"・",null,null,"・",null,null,null,null,null,null,null,null,"",""]
[null,382,null,null,"・",null,"・",null,null,"・",null,null,null,null,null,null,null,null,"",""]
[null,383,null,null,"・",null,"・",null,null,"・",null,null,null,null,null,null,null,null,"",""]
[null,384,null,null,"・",null,"・",null,null,"・",null,null,null,null,null,null,null,null,"",""]
[null,385,null,null,"・",null,"・",null,null,"・",null,null,null,null,null,null,null,null,"",""]
[null,386,null,null,"・",null,"・",null,null,"・",null,null,null,null,null,null,null,null,"",{"$f":"I393&K393","v":""}]
[null,387,null,null,"・",null,"・",null,null,"・",null,null,null,null,null,null,null,null,"",""]
[null,388,null,null,"・",null,"・",null,null,"・",null,null,null,null,null,null,null,null,"",""]
[null,389,null,null,"・",null,"・",null,null,"・",null,null,null,null,null,null,null,null,"",""]
[null,390,null,null,"・",null,"・",null,null,"・",null,null,null,null,null,null,null,null,"",""]
[null,391,null,null,"・",null,"・",null,null,"・",null,null,null,null,null,null,null,null,"",""]
[null,392,null,null,"・",null,"・",null,null,"・",null,null,null,null,null,null,null,null,"",""]
[null,393,null,null,"・",null,"・",null,null,"・",null,null,null,null,null,null,null,null,"",""]
[null,394,null,null,"・",null,"・",null,null,"・",null,null,null,null,null,null,null,null,"",""]
[null,395,null,null,"・",null,"・",null,null,"・",null,null,null,null,null,null,null,null,"",""]
[null,396,null,null,"・",null,"・",null,null,"・",null,null,null,null,null,null,null,null,"",""]
[null,397,null,null,"・",null,"・",null,null,"・",null,null,null,null,null,null,null,null,"",""]
[null,398,null,null,"・",null,"・",null,null,"・",null,null,null,null,null,null,null,null,"",""]
[null,399,null,null,"・",null,"・",null,null,"・",null,null,null,null,null,null,null,null,"",""]
[null,400,null,null,"・",null,"・",null,null,"・",null,null,null,null,null,null,null,null,"",""]
[null,401,null,null,"・",null,"・",null,null,"・",null,null,null,null,null,null,null,null,""]
[null,402,null,null,"・",null,"・",null,null,"・",null,null,null,null,null,null,null,null,""]
[null,403,null,null,"・",null,"・",null,null,"・",null,null,null,null,null,null,null,null,""]
[null,404,null,null,"・",null,"・",null,null,"・",null,null,null,null,null,null,null,null,""]
[null,405,null,null,"・",null,"・",null,null,"・",null,null,null,null,null,null,null,null,""]
[null,406,null,null,"・",null,"・",null,null,"・",null,null,null,null,null,null,null,null,""]
[null,407,null,null,"・",null,"・",null,null,"・",null,null,null,null,null,null,null,null,""]
[null,408,null,null,"・",null,"・",null,null,"・",null,null,null,null,null,null,null,null,""]
[null,409,null,null,"・",null,"・",null,null,"・",null,null,null,null,null,null,null,null,""]
[null,410,null,null,"・",null,"・",null,null,"・",null,null,null,null,null,null,null,null,""]
[null,411,null,null,"・",null,"・",null,null,"・",null,null,null,null,null,null,null,null,""]
[null,412,null,null,"・",null,"・",null,null,"・",null,null,null,null,null,null,null,null,""]
[null,413,null,null,"・",null,"・",null,null,"・",null,null,null,null,null,null,null,null,""]
[null,414,null,null,"・",null,"・",null,null,"・",null,null,null,null,null,null,null,null,""]
[null,415,null,null,"・",null,"・",null,null,"・",null,null,null,null,null,null,null,null,""]
[null,416,null,null,"・",null,"・",null,null,"・",null,null,null,null,null,null,null,null,""]
[null,417,null,null,"・",null,"・",null,null,"・",null,null,null,null,null,null,null,null,""]
[null,418,null,null,"・",null,"・",null,null,"・",null,null,null,null,null,null,null,null,""]
[null,419,null,null,"・",null,"・",null,null,"・",null,null,null,null,null,null,null,null,""]
[null,420,null,null,"・",null,"・",null,null,"・",null,null,null,null,null,null,null,null,""]
[null,421,null,null,"・",null,"・",null,null,"・",null,null,null,null,null,null,null,null,""]
[null,422,null,null,"・",null,"・",null,null,"・",null,null,null,null,null,null,null,null,""]
[null,423,null,null,"・",null,"・",null,null,"・",null,null,null,null,null,null,null,null,""]
[null,424,null,null,"・",null,"・",null,null,"・",null,null,null,null,null,null,null,null,""]
[null,425,null,null,"・",null,"・",null,null,"・",null,null,null,null,null,null,null,null,""]
[null,426,null,null,"・",null,"・",null,null,"・",null,null,null,null,null,null,null,null,""]
[null,427,null,null,"・",null,"・",null,null,"・",null,null,null,null,null,null,null,null,""]
[null,428,null,null,"・",null,"・",null,null,"・",null,null,null,null,null,null,null,null,""]
[null,429,null,null,"・",null,"・",null,null,"・",null,null,null,null,null,null,null,null,""]
[null,430,null,null,"・",null,"・",null,null,"・",null,null,null,null,null,null,null,null,""]
[null,431,null,null,"・",null,"・",null,null,"・",null,null,null,null,null,null,null,null,""]
[null,432,null,null,"・",null,"・",null,null,"・",null,null,null,null,null,null,null,null,""]
[null,433,null,null,"・",null,"・",null,null,"・",null,null,null,null,null,null,null,null,""]
[null,434,null,null,"・",null,"・",null,null,"・",null,null,null,null,null,null,null,null,""]
[null,435,null,null,"・",null,"・",null,null,"・",null,null,null,null,null,null,null,null,""]
[null,436,null,null,"・",null,"・",null,null,"・",null,null,null,null,null,null,null,null,""]
[null,437,null,null,"・",null,"・",null,null,"・",null,null,null,null,null,null,null,null,""]
[null,438,null,null,"・",null,"・",null,null,"・",null,null,null,null,null,null,null,null,""]
[null,439,null,null,"・",null,"・",null,null,"・",null,null,null,null,null,null,null,null,""]
[null,440,null,null,"・",null,"・",null,null,"・",null,null,null,null,null,null,null,null,""]
[null,441,null,null,"・",null,"・",null,null,"・",null,null,null,null,null,null,null,null,""]
[null,442,null,null,"・",null,"・",null,null,"・",null,null,null,null,null,null,null,null,""]
[null,443,null,null,"・",null,"・",null,null,"・",null,null,null,null,null,null,null,null,""]
[null,444,null,null,"・",null,"・",null,null,"・",null,null,null,null,null,null,null,null,""]
[null,445,null,null,"・",null,"・",null,null,"・",null,null,null,null,null,null,null,null,""]
[null,446,null,null,"・",null,"・",null,null,"・",null,null,null,null,null,null,null,null,""]
[null,447,null,null,"・",null,"・",null,null,"・",null,null,null,null,null,null,null,null,""]
[null,448,null,null,"・",null,"・",null,null,"・",null,null,null,null,null,null,null,null,""]
[null,449,null,null,"・",null,"・",null,null,"・",null,null,null,null,null,null,null,null,""]
[null,450,null,null,"・",null,"・",null,null,"・",null,null,null,null,null,null,null,null,""]
[null,451,null,null,"・",null,"・",null,null,"・",null,null,null,null,null,null,null,null,""]
[null,452,null,null,"・",null,"・",null,null,"・",null,null,null,null,null,null,null,null,""]
[null,453,null,null,"・",null,"・",null,null,"・",null,null,null,null,null,null,null,null,""]
[null,454,null,null,"・",null,"・",null,null,"・",null,null,null,null,null,null,null,null,""]
[null,455,null,null,"・",null,"・",null,null,"・",null,null,null,null,null,null,null,null,""]
[null,456,null,null,"・",null,"・",null,null,"・",null,null,null,null,null,null,null,null,""]
[null,457,null,null,"・",null,"・",null,null,"・",null,null,null,null,null,null,null,null,""]
[null,458,null,null,"・",null,"・",null,null,"・",null,null,null,null,null,null,null,null,""]
[null,459,null,null,"・",null,"・",null,null,"・",null,null,null,null,null,null,null,null,""]
[null,460,null,null,"・",null,"・",null,null,"・",null,null,null,null,null,null,null,null,""]
[null,461,null,null,"・",null,"・",null,null,"・",null,null,null,null,null,null,null,null,""]
[null,462,null,null,"・",null,"・",null,null,"・",null,null,null,null,null,null,null,null,""]
[null,463,null,null,"・",null,"・",null,null,"・",null,null,null,null,null,null,null,null,""]
[null,464,null,null,"・",null,"・",null,null,"・",null,null,null,null,null,null,null,null,""]
[null,465,null,null,"・",null,"・",null,null,"・",null,null,null,null,null,null,null,null,""]
[null,466,null,null,"・",null,"・",null,null,"・",null,null,null,null,null,null,null,null,""]
[null,467,null,null,"・",null,"・",null,null,"・",null,null,null,null,null,null,null,null,""]
[null,468,null,null,"・",null,"・",null,null,"・",null,null,null,null,null,null,null,null,""]
[null,469,null,null,"・",null,"・",null,null,"・",null,null,null,null,null,null,null,null,""]
[null,470,null,null,"・",null,"・",null,null,"・",null,null,null,null,null,null,null,null,""]
[null,471,null,null,"・",null,"・",null,null,"・",null,null,null,null,null,null,null,null,""]
[null,472,null,null,"・",null,"・",null,null,"・",null,null,null,null,null,null,null,null,""]
[null,473,null,null,"・",null,"・",null,null,"・",null,null,null,null,null,null,null,null,""]
[null,474,null,null,"・",null,"・",null,null,"・",null,null,null,null,null,null,null,null,""]
[null,475,null,null,"・",null,"・",null,null,"・",null,null,null,null,null,null,null,null,""]
[null,476,null,null,"・",null,"・",null,null,"・",null,null,null,null,null,null,null,null,""]
[null,477,null,null,"・",null,"・",null,null,"・",null,null,null,null,null,null,null,null,""]
[null,478,null,null,"・",null,"・",null,null,"・",null,null,null,null,null,null,null,null,""]
[null,479,null,null,"・",null,"・",null,null,"・",null,null,null,null,null,null,null,null,""]
[null,480,null,null,"・",null,"・",null,null,"・",null,null,null,null,null,null,null,null,""]
[null,481,null,null,"・",null,"・",null,null,"・",null,null,null,null,null,null,null,null,""]
[null,482,null,null,"・",null,"・",null,null,"・",null,null,null,null,null,null,null,null,""]
[null,483,null,null,"・",null,"・",null,null,"・",null,null,null,null,null,null,null,null,""]
[null,484,null,null,"・",null,"・",null,null,"・",null,null,null,null,null,null,null,null,""]
[null,485,null,null,"・",null,"・",null,null,"・",null,null,null,null,null,null,null,null,""]
[null,486,null,null,"・",null,"・",null,null,"・",null,null,null,null,null,null,null,null,""]
[null,487,null,null,"・",null,"・",null,null,"・",null,null,null,null,null,null,null,null,""]
[null,488,null,null,"・",null,"・",null,null,"・",null,null,null,null,null,null,null,null,""]
[null,489,null,null,"・",null,"・",null,null,"・",null,null,null,null,null,null,null,null,""]
[null,490,null,null,"・",null,"・",null,null,"・",null,null,null,null,null,null,null,null,""]
[null,491,null,null,"・",null,"・",null,null,"・",null,null,null,null,null,null,null,null,""]
[null,492,null,null,"・",null,"・",null,null,"・",null,null,null,null,null,null,null,null,""]
[null,493,null,null,"・",null,"・",null,null,"・",null,null,null,null,null,null,null,null,""]
[null,494,null,null,"・",null,"・",null,null,"・",null,null,null,null,null,null,null,null,""]
[null,495,null,null,"・",null,"・",null,null,"・",null,null,null,null,null,null,null,null,""]
[null,496,null,null,"・",null,"・",null,null,"・",null,null,null,null,null,null,null,null,""]
[null,497,null,null,"・",null,"・",null,null,"・",null,null,null,null,null,null,null,null,""]
[null,498,null,null,"・",null,"・",null,null,"・",null,null,null,null,null,null,null,null,""]
[null,499,null,null,"・",null,"・",null,null,"・",null,null,null,null,null,null,null,null,""]
[null,500,null,null,"・",null,"・",null,null,"・",null,null,null,null,null,null,null,null,""]

{"sheet":"ダブルス","index":1,"n_rows":608,"n_cols":27,"rows_kept":608,"cut":false,"hidden":false,"merged":[[606,6,607,6],[606,7,607,7],[606,8,607,8],[606,9,607,9],[606,10,607,10],[606,19,607,19],[604,7,605,7],[604,8,605,8],[604,9,605,9],[604,10,605,10],[604,19,605,19],[606,1,607,1],[606,2,607,2],[606,3,607,3],[606,4,607,4],[606,5,607,5],[604,1,605,1],[604,2,605,2],[604,3,605,3],[604,4,605,4],[604,5,605,5],[604,6,605,6],[600,10,601,10],[600,19,601,19],[602,1,603,1],[602,2,603,2],[602,3,603,3],[602,4,603,4],[602,5,603,5],[600,1,601,1],[600,2,601,2],[600,3,601,3],[600,4,601,4],[600,5,601,5],[600,6,601,6],[598,6,599,6],[598,7,599,7],[598,8,599,8],[598,9,599,9],[598,10,599,10],[598,19,599,19],[602,6,603,6],[602,7,603,7],[602,8,603,8],[602,9,603,9],[602,10,603,10],[602,19,603,19],[600,7,601,7],[600,8,601,8],[600,9,601,9],[596,7,597,7],[596,8,597,8],[596,9,597,9],[596,10,597,10],[596,19,597,19],[598,1,599,1],[598,2,599,2],[598,3,599,3],[598,4,599,4],[598,5,599,5],[596,1,597,1],[596,2,597,2],[596,3,597,3],[596,4,597,4],[596,5,597,5],[596,6,597,6],[594,6,595,6],[594,7,595,7],[594,8,595,8],[594,9,595,9],[594,10,595,10],[594,19,595,19],[592,7,593,7],[592,8,593,8],[592,9,593,9],[592,10,593,10],[592,19,593,19],[594,1,595,1],[594,2,595,2],[594,3,595,3],[594,4,595,4],[594,5,595,5],[592,1,593,1],[592,2,593,2],[592,3,593,3],[592,4,593,4],[592,5,593,5],[592,6,593,6],[590,6,591,6],[590,7,591,7],[590,8,591,8],[590,9,591,9],[590,10,591,10],[590,19,591,19],[588,7,589,7],[588,8,589,8],[588,9,589,9],[588,10,589,10],[588,19,589,19],[590,1,591,1],[590,2,591,2],[590,3,591,3],[590,4,591,4],[590,5,591,5],[588,1,589,1],[588,2,589,2],[588,3,589,3],[588,4,589,4],[588,5,589,5],[588,6,589,6],[586,6,587,6],[586,7,587,7],[586,8,587,8],[586,9,587,9],[586,10,587,10],[586,19,587,19],[584,7,585,7],[584,8,585,8],[584,9,585,9],[584,10,585,10],[584,19,585,19],[586,1,587,1],[586,2,587,2],[586,3,587,3],[586,4,587,4],[586,5,587,5],[584,1,585,1],[584,2,585,2],[584,3,585,3],[584,4,585,4],[584,5,585,5],[584,6,585,6],[582,6,583,6],[582,7,583,7],[582,8,583,8],[582,9,583,9],[582,10,583,10],[582,19,583,19],[580,7,581,7],[580,8,581,8],[580,9,581,9],[580,10,581,10],[580,19,581,19],[582,1,583,1],[582,2,583,2],[582,3,583,3],[582,4,583,4],[582,5,583,5],[580,1,581,1],[580,2,581,2],[580,3,581,3],[580,4,581,4],[580,5,581,5],[580,6,581,6],[578,6,579,6],[578,7,579,7],[578,8,579,8],[578,9,579,9],[578,10,579,10],[578,19,579,19],[576,7,577,7],[576,8,577,8],[576,9,577,9],[576,10,577,10],[576,19,577,19],[578,1,579,1],[578,2,579,2],[578,3,579,3],[578,4,579,4],[578,5,579,5],[576,1,577,1],[576,2,577,2],[576,3,577,3],[576,4,577,4],[576,5,577,5],[576,6,577,6],[574,6,575,6],[574,7,575,7],[574,8,575,8],[574,9,575,9],[574,10,575,10],[574,19,575,19],[572,7,573,7],[572,8,573,8],[572,9,573,9],[572,10,573,10],[572,19,573,19],[574,1,575,1],[574,2,575,2],[574,3,575,3],[574,4,575,4],[574,5,575,5],[572,1,573,1],[572,2,573,2],[572,3,573,3],[572,4,573,4],[572,5,573,5],[572,6,573,6],[570,6,571,6],[570,7,571,7],[570,8,571,8],[570,9,571,9],[570,10,571,10],[570,19,571,19],[568,7,569,7],[568,8,569,8],[568,9,569,9],[568,10,569,10],[568,19,569,19],[570,1,571,1],[570,2,571,2],[570,3,571,3],[570,4,571,4],[570,5,571,5],[568,1,569,1],[568,2,569,2],[568,3,569,3],[568,4,569,4],[568,5,569,5],[568,6,569,6],[566,6,567,6],[566,7,567,7],[566,8,567,8],[566,9,567,9],[566,10,567,10],[566,19,567,19],[564,7,565,7],[564,8,565,8],[564,9,565,9],[564,10,565,10],[564,19,565,19],[566,1,567,1],[566,2,567,2],[566,3,567,3],[566,4,567,4],[566,5,567,5],[564,1,565,1],[564,2,565,2],[564,3,565,3],[564,4,565,4],[564,5,565,5],[564,6,565,6],[562,6,563,6],[562,7,563,7],[562,8,563,8],[562,9,563,9],[562,10,563,10],[562,19,563,19],[560,7,561,7],[560,8,561,8],[560,9,561,9],[560,10,561,10],[560,19,561,19],[562,1,563,1],[562,2,563,2],[562,3,563,3],[562,4,563,4],[562,5,563,5],[560,1,561,1],[560,2,561,2],[560,3,561,3],[560,4,561,4],[560,5,561,5],[560,6,561,6],[558,6,559,6],[558,7,559,7],[558,8,559,8],[558,9,559,9],[558,10,559,10],[558,19,559,19],[556,7,557,7],[556,8,557,8],[556,9,557,9],[556,10,557,10],[556,19,557,19],[558,1,559,1],[558,2,559,2],[558,3,559,3],[558,4,559,4],[558,5,559,5],[556,1,557,1],[556,2,557,2],[556,3,557,3],[556,4,557,4],[556,5,557,5],[556,6,557,6],[554,6,555,6],[554,7,555,7],[554,8,555,8],[554,9,555,9],[554,10,555,10],[554,19,555,19],[552,7,553,7],[552,8,553,8],[552,9,553,9],[552,10,553,10],[552,19,553,19],[554,1,555,1],[554,2,555,2],[554,3,555,3],[554,4,555,4],[554,5,555,5],[552,1,553,1],[552,2,553,2],[552,3,553,3],[552,4,553,4],[552,5,553,5],[552,6,553,6],[550,6,551,6],[550,7,551,7],[550,8,551,8],[550,9,551,9],[550,10,551,10],[550,19,551,19],[548,7,549,7],[548,8,549,8],[548,9,549,9],[548,10,549,10],[548,19,549,19],[550,1,551,1],[550,2,551,2],[550,3,551,3],[550,4,551,4],[550,5,551,5],[548,1,549,1],[548,2,549,2],[548,3,549,3],[548,4,549,4],[548,5,549,5],[548,6,549,6],[546,6,547,6],[546,7,547,7],[546,8,547,8],[546,9,547,9],[546,10,547,10],[546,19,547,19],[544,7,545,7],[544,8,545,8],[544,9,545,9],[544,10,545,10],[544,19,545,19],[546,1,547,1],[546,2,547,2],[546,3,547,3],[546,4,547,4],[546,5,547,5],[544,1,545,1],[544,2,545,2],[544,3,545,3],[544,4,545,4],[544,5,545,5],[544,6,545,6],[542,6,543,6],[542,7,543,7],[542,8,543,8],[542,9,543,9],[542,10,543,10],[542,19,543,19],[540,7,541,7],[540,8,541,8],[540,9,541,9],[540,10,541,10],[540,19,541,19],[542,1,543,1],[542,2,543,2],[542,3,543,3],[542,4,543,4],[542,5,543,5],[540,1,541,1],[540,2,541,2],[540,3,541,3],[540,4,541,4],[540,5,541,5],[540,6,541,6],[538,6,539,6],[538,7,539,7],[538,8,539,8],[538,9,539,9],[538,10,539,10],[538,19,539,19],[536,7,537,7],[536,8,537,8],[536,9,537,9],[536,10,537,10],[536,19,537,19],[538,1,539,1],[538,2,539,2],[538,3,539,3],[538,4,539,4],[538,5,539,5],[536,1,537,1],[536,2,537,2],[536,3,537,3],[536,4,537,4],[536,5,537,5],[536,6,537,6],[534,6,535,6],[534,7,535,7],[534,8,535,8],[534,9,535,9],[534,10,535,10],[534,19,535,19],[532,7,533,7],[532,8,533,8],[532,9,533,9],[532,10,533,10],[532,19,533,19],[534,1,535,1],[534,2,535,2],[534,3,535,3],[534,4,535,4],[534,5,535,5],[532,1,533,1],[532,2,533,2],[532,3,533,3],[532,4,533,4],[532,5,533,5],[532,6,533,6],[530,6,531,6],[530,7,531,7],[530,8,531,8],[530,9,531,9],[530,10,531,10],[530,19,531,19],[528,7,529,7],[528,8,529,8],[528,9,529,9],[528,10,529,10],[528,19,529,19],[530,1,531,1],[530,2,531,2],[530,3,531,3],[530,4,531,4],[530,5,531,5],[528,1,529,1],[528,2,529,2],[528,3,529,3],[528,4,529,4],[528,5,529,5],[528,6,529,6],[526,6,527,6],[526,7,527,7],[526,8,527,8],[526,9,527,9],[526,10,527,10],[526,19,527,19],[524,7,525,7],[524,8,525,8],[524,9,525,9],[524,10,525,10],[524,19,525,19],[526,1,527,1],[526,2,527,2],[526,3,527,3],[526,4,527,4],[526,5,527,5],[524,1,525,1],[524,2,525,2],[524,3,525,3],[524,4,525,4],[524,5,525,5],[524,6,525,6],[522,6,523,6],[522,7,523,7],[522,8,523,8],[522,9,523,9],[522,10,523,10],[522,19,523,19],[520,7,521,7],[520,8,521,8],[520,9,521,9],[520,10,521,10],[520,19,521,19],[522,1,523,1],[522,2,523,2],[522,3,523,3],[522,4,523,4],[522,5,523,5],[520,1,521,1],[520,2,521,2],[520,3,521,3],[520,4,521,4],[520,5,521,5],[520,6,521,6],[518,6,519,6],[518,7,519,7],[518,8,519,8],[518,9,519,9],[518,10,519,10],[518,19,519,19],[516,7,517,7],[516,8,517,8],[516,9,517,9],[516,10,517,10],[516,19,517,19],[518,1,519,1],[518,2,519,2],[518,3,519,3],[518,4,519,4],[518,5,519,5],[516,1,517,1],[516,2,517,2],[516,3,517,3],[516,4,517,4],[516,5,517,5],[516,6,517,6],[514,6,515,6],[514,7,515,7],[514,8,515,8],[514,9,515,9],[514,10,515,10],[514,19,515,19],[512,7,513,7],[512,8,513,8],[512,9,513,9],[512,10,513,10],[512,19,513,19],[514,1,515,1],[514,2,515,2],[514,3,515,3],[514,4,515,4],[514,5,515,5],[512,1,513,1],[512,2,513,2],[512,3,513,3],[512,4,513,4],[512,5,513,5],[512,6,513,6],[510,6,511,6],[510,7,511,7],[510,8,511,8],[510,9,511,9],[510,10,511,10],[510,19,511,19],[508,7,509,7],[508,8,509,8],[508,9,509,9],[508,10,509,10],[508,19,509,19],[510,1,511,1],[510,2,511,2],[510,3,511,3],[510,4,511,4],[510,5,511,5],[508,1,509,1],[508,2,509,2],[508,3,509,3],[508,4,509,4],[508,5,509,5],[508,6,509,6],[506,6,507,6],[506,7,507,7],[506,8,507,8],[506,9,507,9],[506,10,507,10],[506,19,507,19],[504,7,505,7],[504,8,505,8],[504,9,505,9],[504,10,505,10],[504,19,505,19],[506,1,507,1],[506,2,507,2],[506,3,507,3],[506,4,507,4],[506,5,507,5],[504,1,505,1],[504,2,505,2],[504,3,505,3],[504,4,505,4],[504,5,505,5],[504,6,505,6],[502,6,503,6],[502,7,503,7],[502,8,503,8],[502,9,503,9],[502,10,503,10],[502,19,503,19],[500,7,501,7],[500,8,501,8],[500,9,501,9],[500,10,501,10],[500,19,501,19],[502,1,503,1],[502,2,503,2],[502,3,503,3],[502,4,503,4],[502,5,503,5],[500,1,501,1],[500,2,501,2],[500,3,501,3],[500,4,501,4],[500,5,501,5],[500,6,501,6],[498,6,499,6],[498,7,499,7],[498,8,499,8],[498,9,499,9],[498,10,499,10],[498,19,499,19],[496,7,497,7],[496,8,497,8],[496,9,497,9],[496,10,497,10],[496,19,497,19],[498,1,499,1],[498,2,499,2],[498,3,499,3],[498,4,499,4],[498,5,499,5],[496,1,497,1],[496,2,497,2],[496,3,497,3],[496,4,497,4],[496,5,497,5],[496,6,497,6],[494,6,495,6],[494,7,495,7],[494,8,495,8],[494,9,495,9],[494,10,495,10],[494,19,495,19],[492,7,493,7],[492,8,493,8],[492,9,493,9],[492,10,493,10],[492,19,493,19],[494,1,495,1],[494,2,495,2],[494,3,495,3],[494,4,495,4],[494,5,495,5],[492,1,493,1],[492,2,493,2],[492,3,493,3],[492,4,493,4],[492,5,493,5],[492,6,493,6],[490,6,491,6],[490,7,491,7],[490,8,491,8],[490,9,491,9],[490,10,491,10],[490,19,491,19],[488,7,489,7],[488,8,489,8],[488,9,489,9],[488,10,489,10],[488,19,489,19],[490,1,491,1],[490,2,491,2],[490,3,491,3],[490,4,491,4],[490,5,491,5],[488,1,489,1],[488,2,489,2],[488,3,489,3],[488,4,489,4],[488,5,489,5],[488,6,489,6],[486,6,487,6],[486,7,487,7],[486,8,487,8],[486,9,487,9],[486,10,487,10],[486,19,487,19],[484,7,485,7],[484,8,485,8],[484,9,485,9],[484,10,485,10],[484,19,485,19],[486,1,487,1],[486,2,487,2],[486,3,487,3],[486,4,487,4],[486,5,487,5],[484,1,485,1],[484,2,485,2],[484,3,485,3],[484,4,485,4],[484,5,485,5],[484,6,485,6],[482,6,483,6],[482,7,483,7],[482,8,483,8],[482,9,483,9],[482,10,483,10],[482,19,483,19],[480,7,481,7],[480,8,481,8],[480,9,481,9],[480,10,481,10],[480,19,481,19],[482,1,483,1],[482,2,483,2],[482,3,483,3],[482,4,483,4],[482,5,483,5],[480,1,481,1],[480,2,481,2],[480,3,481,3],[480,4,481,4],[480,5,481,5],[480,6,481,6],[478,6,479,6],[478,7,479,7],[478,8,479,8],[478,9,479,9],[478,10,479,10],[478,19,479,19],[478,1,479,1],[478,2,479,2],[478,3,479,3],[478,4,479,4],[478,5,479,5],[336,6,337,6],[336,7,337,7],[336,8,337,8],[336,9,337,9],[336,10,337,10],[336,19,337,19],[334,7,335,7],[334,8,335,8],[334,9,335,9],[334,10,335,10],[334,19,335,19],[336,1,337,1],[336,2,337,2],[336,3,337,3],[336,4,337,4],[336,5,337,5],[334,1,335,1],[334,2,335,2],[334,3,335,3],[334,4,335,4],[334,5,335,5],[334,6,335,6],[332,6,333,6],[332,7,333,7],[332,8,333,8],[332,9,333,9],[332,10,333,10],[332,19,333,19],[330,7,331,7],[330,8,331,8],[330,9,331,9],[330,10,331,10],[330,19,331,19],[332,1,333,1],[332,2,333,2],[332,3,333,3],[332,4,333,4],[332,5,333,5],[330,1,331,1],[330,2,331,2],[330,3,331,3],[330,4,331,4],[330,5,331,5],[330,6,331,6],[328,6,329,6],[328,7,329,7],[328,8,329,8],[328,9,329,9],[328,10,329,10],[328,19,329,19],[476,7,477,7],[476,8,477,8],[476,9,477,9],[476,10,477,10],[476,19,477,19],[328,1,329,1],[328,2,329,2],[328,3,329,3],[328,4,329,4],[328,5,329,5],[476,1,477,1],[476,2,477,2],[476,3,477,3],[476,4,477,4],[476,5,477,5],[476,6,477,6],[474,6,475,6],[474,7,475,7],[474,8,475,8],[474,9,475,9],[474,10,475,10],[474,19,475,19],[472,7,473,7],[472,8,473,8],[472,9,473,9],[472,10,473,10],[472,19,473,19],[474,1,475,1],[474,2,475,2],[474,3,475,3],[474,4,475,4],[474,5,475,5],[472,1,473,1],[472,2,473,2],[472,3,473,3],[472,4,473,4],[472,5,473,5],[472,6,473,6],[470,6,471,6],[470,7,471,7],[470,8,471,8],[470,9,471,9],[470,10,471,10],[470,19,471,19],[468,7,469,7],[468,8,469,8],[468,9,469,9],[468,10,469,10],[468,19,469,19],[470,1,471,1],[470,2,471,2],[470,3,471,3],[470,4,471,4],[470,5,471,5],[468,1,469,1],[468,2,469,2],[468,3,469,3],[468,4,469,4],[468,5,469,5],[468,6,469,6],[466,6,467,6],[466,7,467,7],[466,8,467,8],[466,9,467,9],[466,10,467,10],[466,19,467,19],[464,7,465,7],[464,8,465,8],[464,9,465,9],[464,10,465,10],[464,19,465,19],[466,1,467,1],[466,2,467,2],[466,3,467,3],[466,4,467,4],[466,5,467,5],[464,1,465,1],[464,2,465,2],[464,3,465,3],[464,4,465,4],[464,5,465,5],[464,6,465,6],[462,6,463,6],[462,7,463,7],[462,8,463,8],[462,9,463,9],[462,10,463,10],[462,19,463,19],[460,7,461,7],[460,8,461,8],[460,9,461,9],[460,10,461,10],[460,19,461,19],[462,1,463,1],[462,2,463,2],[462,3,463,3],[462,4,463,4],[462,5,463,5],[460,1,461,1],[460,2,461,2],[460,3,461,3],[460,4,461,4],[460,5,461,5],[460,6,461,6],[458,6,459,6],[458,7,459,7],[458,8,459,8],[458,9,459,9],[458,10,459,10],[458,19,459,19],[456,7,457,7],[456,8,457,8],[456,9,457,9],[456,10,457,10],[456,19,457,19],[458,1,459,1],[458,2,459,2],[458,3,459,3],[458,4,459,4],[458,5,459,5],[456,1,457,1],[456,2,457,2],[456,3,457,3],[456,4,457,4],[456,5,457,5],[456,6,457,6],[454,6,455,6],[454,7,455,7],[454,8,455,8],[454,9,455,9],[454,10,455,10],[454,19,455,19],[452,7,453,7],[452,8,453,8],[452,9,453,9],[452,10,453,10],[452,19,453,19],[454,1,455,1],[454,2,455,2],[454,3,455,3],[454,4,455,4],[454,5,455,5],[452,1,453,1],[452,2,453,2],[452,3,453,3],[452,4,453,4],[452,5,453,5],[452,6,453,6],[450,6,451,6],[450,7,451,7],[450,8,451,8],[450,9,451,9],[450,10,451,10],[450,19,451,19],[448,7,449,7],[448,8,449,8],[448,9,449,9],[448,10,449,10],[448,19,449,19],[450,1,451,1],[450,2,451,2],[450,3,451,3],[450,4,451,4],[450,5,451,5],[448,1,449,1],[448,2,449,2],[448,3,449,3],[448,4,449,4],[448,5,449,5],[448,6,449,6],[446,6,447,6],[446,7,447,7],[446,8,447,8],[446,9,447,9],[446,10,447,10],[446,19,447,19],[444,7,445,7],[444,8,445,8],[444,9,445,9],[444,10,445,10],[444,19,445,19],[446,1,447,1],[446,2,447,2],[446,3,447,3],[446,4,447,4],[446,5,447,5],[444,1,445,1],[444,2,445,2],[444,3,445,3],[444,4,445,4],[444,5,445,5],[444,6,445,6],[442,6,443,6],[442,7,443,7],[442,8,443,8],[442,9,443,9],[442,10,443,10],[442,19,443,19],[440,7,441,7],[440,8,441,8],[440,9,441,9],[440,10,441,10],[440,19,441,19],[442,1,443,1],[442,2,443,2],[442,3,443,3],[442,4,443,4],[442,5,443,5],[440,1,441,1],[440,2,441,2],[440,3,441,3],[440,4,441,4],[440,5,441,5],[440,6,441,6],[438,6,439,6],[438,7,439,7],[438,8,439,8],[438,9,439,9],[438,10,439,10],[438,19,439,19],[436,7,437,7],[436,8,437,8],[436,9,437,9],[436,10,437,10],[436,19,437,19],[438,1,439,1],[438,2,439,2],[438,3,439,3],[438,4,439,4],[438,5,439,5],[436,1,437,1],[436,2,437,2],[436,3,437,3],[436,4,437,4],[436,5,437,5]],"merged_total":3316,"flags":["merged_cut"]}
[null,null,null,null,null,null,null,null,null,null,null,null,null,null,null,null,null,null,{"$f":"IF(I1=\"\",\"\",DATEDIF(DATE(P1,Q1,R1),DATE($C$5+2019,4,1),\"Y\"))","v":""},{"$f":"IF(I1=\"\",\"\",S1+S2)","v":""}]
[null,null,null,null,null,null,null,null,null,null,null,null,null,null,null,null,null,null,{"$f":"IF(I1=\"\",\"\",DATEDIF(DATE(P2,Q2,R2),DATE($C$5+2019,4,1),\"Y\"))","v":""}]
[null,"第2３回　全九州卓球選手権大会（ラージボールの部）　参加申込書"]
[null,null,null,null,null,null,null,null,null,null,null,null,null,null,null,null,null,null,null,null,null,null,"A","B","C","D","E"]
[null,"令和",4,"年度",null,null,null,null,null,null,null,null,null,null,null,null,null,null,null,null,null,"男",{"$f":"COUNTIFS(ダブルスカテ,W$4,ダブルス性,$V5)","v":0},0,0,0,0]
[null,"［ダブルスの部］",null,null,null,null,null,null,null,null,null,null,null,null,null,null,null,null,null,null,null,"女",0,0,0,0,0]
[null,null,"種目県内順位","前年度ランキング",null,null,null,null,"種　目",null,null,"名前",null,"ふりがな","所属クラブ名","生年月日（西暦）",null,null,"年齢","年齢\n合計",null,"混",0,0,0,0,0]
[null,null,null,"（例）男・B・５",null,null,null,null,"（例）     男・B",null,null,"姓","名",null,null,"年","月","日",null,null,null,"計",{"$f":"SUM(W5:W7)","v":0},{"$f":"SUM(X5:X7)","v":0},0,0,0]
[null,1,null,null,"・",null,"・",null,null,"・"]
[]
[null,2,null,null,"・",null,"・",null,null,"・",null,null,null,null,null,null,null,null,"",""]
[null,null,null,null,null,null,null,null,null,null,null,null,null,null,null,null,null,null,""]
[null,3,null,null,"・",null,"・",null,null,"・",null,null,null,null,null,null,null,null,"",""]
[null,null,null,null,null,null,null,null,null,null,null,null,null,null,null,null,null,null,""]
[null,4,null,null,"・",null,"・",null,null,"・",null,null,null,null,null,null,null,null,"",""]
[null,null,null,null,null,null,null,null,null,null,null,null,null,null,null,null,null,null,""]
[null,5,null,null,"・",null,"・",null,null,"・",null,null,null,null,null,null,null,null,"",""]
[null,null,null,null,null,null,null,null,null,null,null,null,null,null,null,null,null,null,""]
[null,6,null,null,"・",null,"・",null,null,"・",null,null,null,null,null,null,null,null,"",""]
[null,null,null,null,null,null,null,null,null,null,null,null,null,null,null,null,null,null,""]
[null,7,null,null,"・",null,"・",null,null,"・",null,null,null,null,null,null,null,null,"",""]
[null,null,null,null,null,null,null,null,null,null,null,null,null,null,null,null,null,null,""]
[null,8,null,null,"・",null,"・",null,null,"・",null,null,null,null,null,null,null,null,"",""]
[null,null,null,null,null,null,null,null,null,null,null,null,null,null,null,null,null,null,""]
[null,9,null,null,"・",null,"・",null,null,"・",null,null,null,null,null,null,null,null,"",""]
[null,null,null,null,null,null,null,null,null,null,null,null,null,null,null,null,null,null,""]
[null,10,null,null,"・",null,"・",null,null,"・",null,null,null,null,null,null,null,null,"",""]
[null,null,null,null,null,null,null,null,null,null,null,null,null,null,null,null,null,null,""]
[null,11,null,null,"・",null,"・",null,null,"・",null,null,null,null,null,null,null,null,"",""]
[null,null,null,null,null,null,null,null,null,null,null,null,null,null,null,null,null,null,""]
[null,12,null,null,"・",null,"・",null,null,"・",null,null,null,null,null,null,null,null,"",""]
[null,null,null,null,null,null,null,null,null,null,null,null,null,null,null,null,null,null,""]
[null,13,null,null,"・",null,"・",null,null,"・",null,null,null,null,null,null,null,null,"",""]
[null,null,null,null,null,null,null,null,null,null,null,null,null,null,null,null,null,null,""]
[null,14,null,null,"・",null,"・",null,null,"・",null,null,null,null,null,null,null,null,"",""]
[null,null,null,null,null,null,null,null,null,null,null,null,null,null,null,null,null,null,""]
[null,15,null,null,"・",null,"・",null,null,"・",null,null,null,null,null,null,null,null,"",""]
[null,null,null,null,null,null,null,null,null,null,null,null,null,null,null,null,null,null,""]
[null,16,null,null,"・",null,"・",null,null,"・",null,null,null,null,null,null,null,null,"",""]
[null,null,null,null,null,null,null,null,null,null,null,null,null,null,null,null,null,null,""]
[null,17,null,null,"・",null,"・",null,null,"・",null,null,null,null,null,null,null,null,"",""]
[null,null,null,null,null,null,null,null,null,null,null,null,null,null,null,null,null,null,""]
[null,18,null,null,"・",null,"・",null,null,"・",null,null,null,null,null,null,null,null,"",""]
[null,null,null,null,null,null,null,null,null,null,null,null,null,null,null,null,null,null,""]
[null,19,null,null,"・",null,"・",null,null,"・",null,null,null,null,null,null,null,null,"",""]
[null,null,null,null,null,null,null,null,null,null,null,null,null,null,null,null,null,null,""]
[null,20,null,null,"・",null,"・",null,null,"・",null,null,null,null,null,null,null,null,"",""]
[null,null,null,null,null,null,null,null,null,null,null,null,null,null,null,null,null,null,""]
[null,21,null,null,"・",null,"・",null,null,"・",null,null,null,null,null,null,null,null,"",""]
[null,null,null,null,null,null,null,null,null,null,null,null,null,null,null,null,null,null,""]
[null,22,null,null,"・",null,"・",null,null,"・",null,null,null,null,null,null,null,null,"",""]
[null,null,null,null,null,null,null,null,null,null,null,null,null,null,null,null,null,null,""]
[null,23,null,null,"・",null,"・",null,null,"・",null,null,null,null,null,null,null,null,"",""]
[null,null,null,null,null,null,null,null,null,null,null,null,null,null,null,null,null,null,""]
[null,24,null,null,"・",null,"・",null,null,"・",null,null,null,null,null,null,null,null,"",""]
[null,null,null,null,null,null,null,null,null,null,null,null,null,null,null,null,null,null,""]
[null,25,null,null,"・",null,"・",null,null,"・",null,null,null,null,null,null,null,null,"",""]
[null,null,null,null,null,null,null,null,null,null,null,null,null,null,null,null,null,null,""]
[null,26,null,null,"・",null,"・",null,null,"・",null,null,null,null,null,null,null,null,"",""]
[null,null,null,null,null,null,null,null,null,null,null,null,null,null,null,null,null,null,""]
[null,27,null,null,"・",null,"・",null,null,"・",null,null,null,null,null,null,null,null,"",""]
[null,null,null,null,null,null,null,null,null,null,null,null,null,null,null,null,null,null,""]
[null,28,null,null,"・",null,"・",null,null,"・",null,null,null,null,null,null,null,null,"",""]
[null,null,null,null,null,null,null,null,null,null,null,null,null,null,null,null,null,null,""]
[null,29,null,null,"・",null,"・",null,null,"・",null,null,null,null,null,null,null,null,"",""]
[null,null,null,null,null,null,null,null,null,null,null,null,null,null,null,null,null,null,""]
[null,30,null,null,"・",null,"・",null,null,"・",null,null,null,null,null,null,null,null,"",""]
[null,null,null,null,null,null,null,null,null,null,null,null,null,null,null,null,null,null,""]
[null,31,null,null,"・",null,"・",null,null,"・",null,null,null,null,null,null,null,null,"",""]
[null,null,null,null,null,null,null,null,null,null,null,null,null,null,null,null,null,null,""]
[null,32,null,null,"・",null,"・",null,null,"・",null,null,null,null,null,null,null,null,"",""]
[null,null,null,null,null,null,null,null,null,null,null,null,null,null,null,null,null,null,""]
[null,33,null,null,"・",null,"・",null,null,"・",null,null,null,null,null,null,null,null,"",""]
[null,null,null,null,null,null,null,null,null,null,null,null,null,null,null,null,null,null,""]
[null,34,null,null,"・",null,"・",null,null,"・",null,null,null,null,null,null,null,null,"",""]
[null,null,null,null,null,null,null,null,null,null,null,null,null,null,null,null,null,null,""]
[null,35,null,null,"・",null,"・",null,null,"・",null,null,null,null,null,null,null,null,"",""]
[null,null,null,null,null,null,null,null,null,null,null,null,null,null,null,null,null,null,""]
[null,36,null,null,"・",null,"・",null,null,"・",null,null,null,null,null,null,null,null,"",""]
[null,null,null,null,null,null,null,null,null,null,null,null,null,null,null,null,null,null,""]
[null,37,null,null,"・",null,"・",null,null,"・",null,null,null,null,null,null,null,null,"",""]
[null,null,null,null,null,null,null,null,null,null,null,null,null,null,null,null,null,null,""]
[null,38,null,null,"・",null,"・",null,null,"・",null,null,null,null,null,null,null,null,"",""]
[null,null,null,null,null,null,null,null,null,null,null,null,null,null,null,null,null,null,""]
[null,39,null,null,"・",null,"・",null,null,"・",null,null,null,null,null,null,null,null,"",""]
[null,null,null,null,null,null,null,null,null,null,null,null,null,null,null,null,null,null,""]
[null,40,null,null,"・",null,"・",null,null,"・",null,null,null,null,null,null,null,null,"",""]
[null,null,null,null,null,null,null,null,null,null,null,null,null,null,null,null,null,null,""]
[null,41,null,null,"・",null,"・",null,null,"・",null,null,null,null,null,null,null,null,"",""]
[null,null,null,null,null,null,null,null,null,null,null,null,null,null,null,null,null,null,""]
[null,42,null,null,"・",null,"・",null,null,"・",null,null,null,null,null,null,null,null,"",""]
[null,null,null,null,null,null,null,null,null,null,null,null,null,null,null,null,null,null,""]
[null,43,null,null,"・",null,"・",null,null,"・",null,null,null,null,null,null,null,null,"",""]
[null,null,null,null,null,null,null,null,null,null,null,null,null,null,null,null,null,null,""]
[null,44,null,null,"・",null,"・",null,null,"・",null,null,null,null,null,null,null,null,"",""]
[null,null,null,null,null,null,null,null,null,null,null,null,null,null,null,null,null,null,""]
[null,45,null,null,"・",null,"・",null,null,"・",null,null,null,null,null,null,null,null,"",""]
[null,null,null,null,null,null,null,null,null,null,null,null,null,null,null,null,null,null,""]
[null,46,null,null,"・",null,"・",null,null,"・",null,null,null,null,null,null,null,null,"",""]
[null,null,null,null,null,null,null,null,null,null,null,null,null,null,null,null,null,null,""]
[null,47,null,null,"・",null,"・",null,null,"・",null,null,null,null,null,null,null,null,"",""]
[null,null,null,null,null,null,null,null,null,null,null,null,null,null,null,null,null,null,""]
[null,48,null,null,"・",null,"・",null,null,"・",null,null,null,null,null,null,null,null,"",""]
[null,null,null,null,null,null,null,null,null,null,null,null,null,null,null,null,null,null,""]
[null,49,null,null,"・",null,"・",null,null,"・",null,null,null,null,null,null,null,null,"",""]
[null,null,null,null,null,null,null,null,null,null,null,null,null,null,null,null,null,null,""]
[null,50,null,null,"・",null,"・",null,null,"・",null,null,null,null,null,null,null,null,"",""]
[null,null,null,null,null,null,null,null,null,null,null,null,null,null,null,null,null,null,""]
[null,51,null,null,"・",null,"・",null,null,"・",null,null,null,null,null,null,null,null,"",""]
[null,null,null,null,null,null,null,null,null,null,null,null,null,null,null,null,null,null,""]
[null,52,null,null,"・",null,"・",null,null,"・",null,null,null,null,null,null,null,null,"",""]
[null,null,null,null,null,null,null,null,null,null,null,null,null,null,null,null,null,null,""]
[null,53,null,null,"・",null,"・",null,null,"・",null,null,null,null,null,null,null,null,"",""]
[null,null,null,null,null,null,null,null,null,null,null,null,null,null,null,null,null,null,""]
[null,54,null,null,"・",null,"・",null,null,"・",null,null,null,null,null,null,null,null,"",""]
[null,null,null,null,null,null,null,null,null,null,null,null,null,null,null,null,null,null,""]
[null,55,null,null,"・",null,"・",null,null,"・",null,null,null,null,null,null,null,null,"",""]
[null,null,null,null,null,null,null,null,null,null,null,null,null,null,null,null,null,null,""]
[null,56,null,null,"・",null,"・",null,null,"・",null,null,null,null,null,null,null,null,"",""]
[null,null,null,null,null,null,null,null,null,null,null,null,null,null,null,null,null,null,""]
[null,57,null,null,"・",null,"・",null,null,"・",null,null,null,null,null,null,null,null,"",""]
[null,null,null,null,null,null,null,null,null,null,null,null,null,null,null,null,null,null,""]
[null,58,null,null,"・",null,"・",null,null,"・",null,null,null,null,null,null,null,null,"",""]
[null,null,null,null,null,null,null,null,null,null,null,null,null,null,null,null,null,null,""]
[null,59,null,null,"・",null,"・",null,null,"・",null,null,null,null,null,null,null,null,"",""]
[null,null,null,null,null,null,null,null,null,null,null,null,null,null,null,null,null,null,""]
[null,60,null,null,"・",null,"・",null,null,"・",null,null,null,null,null,null,null,null,"",""]
[null,null,null,null,null,null,null,null,null,null,null,null,null,null,null,null,null,null,""]
[null,61,null,null,"・",null,"・",null,null,"・",null,null,null,null,null,null,null,null,"",""]
[null,null,null,null,null,null,null,null,null,null,null,null,null,null,null,null,null,null,""]
[null,62,null,null,"・",null,"・",null,null,"・",null,null,null,null,null,null,null,null,"",""]
[null,null,null,null,null,null,null,null,null,null,null,null,null,null,null,null,null,null,""]
[null,63,null,null,"・",null,"・",null,null,"・",null,null,null,null,null,null,null,null,"",""]
[null,null,null,null,null,null,null,null,null,null,null,null,null,null,null,null,null,null,""]
[null,64,null,null,"・",null,"・",null,null,"・",null,null,null,null,null,null,null,null,"",""]
[null,null,null,null,null,null,null,null,null,null,null,null,null,null,null,null,null,null,""]
[null,65,null,null,"・",null,"・",null,null,"・",null,null,null,null,null,null,null,null,"",""]
[null,null,null,null,null,null,null,null,null,null,null,null,null,null,null,null,null,null,""]
[null,66,null,null,"・",null,"・",null,null,"・",null,null,null,null,null,null,null,null,"",""]
[null,null,null,null,null,null,null,null,null,null,null,null,null,null,null,null,null,null,""]
[null,67,null,null,"・",null,"・",null,null,"・",null,null,null,null,null,null,null,null,"",""]
[null,null,null,null,null,null,null,null,null,null,null,null,null,null,null,null,null,null,""]
[null,68,null,null,"・",null,"・",null,null,"・",null,null,null,null,null,null,null,null,"",""]
[null,null,null,null,null,null,null,null,null,null,null,null,null,null,null,null,null,null,""]
[null,69,null,null,"・",null,"・",null,null,"・",null,null,null,null,null,null,null,null,"",""]
[null,null,null,null,null,null,null,null,null,null,null,null,null,null,null,null,null,null,""]
[null,70,null,null,"・",null,"・",null,null,"・",null,null,null,null,null,null,null,null,"",""]
[null,null,null,null,null,null,null,null,null,null,null,null,null,null,null,null,null,null,""]
[null,71,null,null,"・",null,"・",null,null,"・",null,null,null,null,null,null,null,null,"",""]
[null,null,null,null,null,null,null,null,null,null,null,null,null,null,null,null,null,null,""]
[null,72,null,null,"・",null,"・",null,null,"・",null,null,null,null,null,null,null,null,"",""]
[null,null,null,null,null,null,null,null,null,null,null,null,null,null,null,null,null,null,""]
[null,73,null,null,"・",null,"・",null,null,"・",null,null,null,null,null,null,null,null,"",""]
[null,null,null,null,null,null,null,null,null,null,null,null,null,null,null,null,null,null,""]
[null,74,null,null,"・",null,"・",null,null,"・",null,null,null,null,null,null,null,null,"",""]
[null,null,null,null,null,null,null,null,null,null,null,null,null,null,null,null,null,null,""]
[null,75,null,null,"・",null,"・",null,null,"・",null,null,null,null,null,null,null,null,"",""]
[null,null,null,null,null,null,null,null,null,null,null,null,null,null,null,null,null,null,""]
[null,76,null,null,"・",null,"・",null,null,"・",null,null,null,null,null,null,null,null,"",""]
[null,null,null,null,null,null,null,null,null,null,null,null,null,null,null,null,null,null,""]
[null,77,null,null,"・",null,"・",null,null,"・",null,null,null,null,null,null,null,null,"",""]
[null,null,null,null,null,null,null,null,null,null,null,null,null,null,null,null,null,null,""]
[null,78,null,null,"・",null,"・",null,null,"・",null,null,null,null,null,null,null,null,"",""]
[null,null,null,null,null,null,null,null,null,null,null,null,null,null,null,null,null,null,""]
[null,79,null,null,"・",null,"・",null,null,"・",null,null,null,null,null,null,null,null,"",""]
[null,null,null,null,null,null,null,null,null,null,null,null,null,null,null,null,null,null,""]
[null,80,null,null,"・",null,"・",null,null,"・",null,null,null,null,null,null,null,null,"",""]
[null,null,null,null,null,null,null,null,null,null,null,null,null,null,null,null,null,null,""]
[null,81,null,null,"・",null,"・",null,null,"・",null,null,null,null,null,null,null,null,"",""]
[null,null,null,null,null,null,null,null,null,null,null,null,null,null,null,null,null,null,""]
[null,82,null,null,"・",null,"・",null,null,"・",null,null,null,null,null,null,null,null,"",""]
[null,null,null,null,null,null,null,null,null,null,null,null,null,null,null,null,null,null,""]
[null,83,null,null,"・",null,"・",null,null,"・",null,null,null,null,null,null,null,null,"",""]
[null,null,null,null,null,null,null,null,null,null,null,null,null,null,null,null,null,null,""]
[null,84,null,null,"・",null,"・",null,null,"・",null,null,null,null,null,null,null,null,"",""]
[null,null,null,null,null,null,null,null,null,null,null,null,null,null,null,null,null,null,""]
[null,85,null,null,"・",null,"・",null,null,"・",null,null,null,null,null,null,null,null,"",""]
[null,null,null,null,null,null,null,null,null,null,null,null,null,null,null,null,null,null,""]
[null,86,null,null,"・",null,"・",null,null,"・",null,null,null,null,null,null,null,null,"",""]
[null,null,null,null,null,null,null,null,null,null,null,null,null,null,null,null,null,null,""]
[null,87,null,null,"・",null,"・",null,null,"・",null,null,null,null,null,null,null,null,"",""]
[null,null,null,null,null,null,null,null,null,null,null,null,null,null,null,null,null,null,""]
[null,88,null,null,"・",null,"・",null,null,"・",null,null,null,null,null,null,null,null,"",""]
[null,null,null,null,null,null,null,null,null,null,null,null,null,null,null,null,null,null,""]
[null,89,null,null,"・",null,"・",null,null,"・",null,null,null,null,null,null,null,null,"",""]
[null,null,null,null,null,null,null,null,null,null,null,null,null,null,null,null,null,null,""]
[null,90,null,null,"・",null,"・",null,null,"・",null,null,null,null,null,null,null,null,"",""]
[null,null,null,null,null,null,null,null,null,null,null,null,null,null,null,null,null,null,""]
[null,91,null,null,"・",null,"・",null,null,"・",null,null,null,null,null,null,null,null,"",""]
[null,null,null,null,null,null,null,null,null,null,null,null,null,null,null,null,null,null,""]
[null,92,null,null,"・",null,"・",null,null,"・",null,null,null,null,null,null,null,null,"",""]
[null,null,null,null,null,null,null,null,null,null,null,null,null,null,null,null,null,null,""]
[null,93,null,null,"・",null,"・",null,null,"・",null,null,null,null,null,null,null,null,"",""]
[null,null,null,null,null,null,null,null,null,null,null,null,null,null,null,null,null,null,""]
[null,94,null,null,"・",null,"・",null,null,"・",null,null,null,null,null,null,null,null,"",""]
[null,null,null,null,null,null,null,null,null,null,null,null,null,null,null,null,null,null,""]
[null,95,null,null,"・",null,"・",null,null,"・",null,null,null,null,null,null,null,null,"",""]
[null,null,null,null,null,null,null,null,null,null,null,null,null,null,null,null,null,null,""]
[null,96,null,null,"・",null,"・",null,null,"・",null,null,null,null,null,null,null,null,"",""]
[null,null,null,null,null,null,null,null,null,null,null,null,null,null,null,null,null,null,""]
[null,97,null,null,"・",null,"・",null,null,"・",null,null,null,null,null,null,null,null,"",""]
[null,null,null,null,null,null,null,null,null,null,null,null,null,null,null,null,null,null,""]
[null,98,null,null,"・",null,"・",null,null,"・",null,null,null,null,null,null,null,null,"",""]
[null,null,null,null,null,null,null,null,null,null,null,null,null,null,null,null,null,null,""]
[null,99,null,null,"・",null,"・",null,null,"・",null,null,null,null,null,null,null,null,"",""]
[null,null,null,null,null,null,null,null,null,null,null,null,null,null,null,null,null,null,""]
[null,100,null,null,"・",null,"・",null,null,"・",null,null,null,null,null,null,null,null,"",""]
[null,null,null,null,null,null,null,null,null,null,null,null,null,null,null,null,null,null,""]
[null,101,null,null,"・",null,"・",null,null,"・",null,null,null,null,null,null,null,null,"",""]
[null,null,null,null,null,null,null,null,null,null,null,null,null,null,null,null,null,null,""]
[null,102,null,null,"・",null,"・",null,null,"・",null,null,null,null,null,null,null,null,"",""]
[null,null,null,null,null,null,null,null,null,null,null,null,null,null,null,null,null,null,""]
[null,103,null,null,"・",null,"・",null,null,"・",null,null,null,null,null,null,null,null,"",""]
[null,null,null,null,null,null,null,null,null,null,null,null,null,null,null,null,null,null,""]
[null,104,null,null,"・",null,"・",null,null,"・",null,null,null,null,null,null,null,null,"",""]
[null,null,null,null,null,null,null,null,null,null,null,null,null,null,null,null,null,null,""]
[null,105,null,null,"・",null,"・",null,null,"・",null,null,null,null,null,null,null,null,"",""]
[null,null,null,null,null,null,null,null,null,null,null,null,null,null,null,null,null,null,""]
[null,106,null,null,"・",null,"・",null,null,"・",null,null,null,null,null,null,null,null,"",""]
[null,null,null,null,null,null,null,null,null,null,null,null,null,null,null,null,null,null,""]
[null,107,null,null,"・",null,"・",null,null,"・",null,null,null,null,null,null,null,null,"",""]
[null,null,null,null,null,null,null,null,null,null,null,null,null,null,null,null,null,null,""]
[null,108,null,null,"・",null,"・",null,null,"・",null,null,null,null,null,null,null,null,"",""]
[null,null,null,null,null,null,null,null,null,null,null,null,null,null,null,null,null,null,""]
[null,109,null,null,"・",null,"・",null,null,"・",null,null,null,null,null,null,null,null,"",""]
[null,null,null,null,null,null,null,null,null,null,null,null,null,null,null,null,null,null,""]
[null,110,null,null,"・",null,"・",null,null,"・",null,null,null,null,null,null,null,null,"",""]
[null,null,null,null,null,null,null,null,null,null,null,null,null,null,null,null,null,null,""]
[null,111,null,null,"・",null,"・",null,null,"・",null,null,null,null,null,null,null,null,"",""]
[null,null,null,null,null,null,null,null,null,null,null,null,null,null,null,null,null,null,""]
[null,112,null,null,"・",null,"・",null,null,"・",null,null,null,null,null,null,null,null,"",""]
[null,null,null,null,null,null,null,null,null,null,null,null,null,null,null,null,null,null,""]
[null,113,null,null,"・",null,"・",null,null,"・",null,null,null,null,null,null,null,null,"",""]
[null,null,null,null,null,null,null,null,null,null,null,null,null,null,null,null,null,null,""]
[null,114,null,null,"・",null,"・",null,null,"・",null,null,null,null,null,null,null,null,"",""]
[null,null,null,null,null,null,null,null,null,null,null,null,null,null,null,null,null,null,""]
[null,115,null,null,"・",null,"・",null,null,"・",null,null,null,null,null,null,null,null,"",""]
[null,null,null,null,null,null,null,null,null,null,null,null,null,null,null,null,null,null,""]
[null,116,null,null,"・",null,"・",null,null,"・",null,null,null,null,null,null,null,null,"",""]
[null,null,null,null,null,null,null,null,null,null,null,null,null,null,null,null,null,null,""]
[null,117,null,null,"・",null,"・",null,null,"・",null,null,null,null,null,null,null,null,"",""]
[null,null,null,null,null,null,null,null,null,null,null,null,null,null,null,null,null,null,""]
[null,118,null,null,"・",null,"・",null,null,"・",null,null,null,null,null,null,null,null,"",""]
[null,null,null,null,null,null,null,null,null,null,null,null,null,null,null,null,null,null,""]
[null,119,null,null,"・",null,"・",null,null,"・",null,null,null,null,null,null,null,null,"",""]
[null,null,null,null,null,null,null,null,null,null,null,null,null,null,null,null,null,null,""]
[null,120,null,null,"・",null,"・",null,null,"・",null,null,null,null,null,null,null,null,"",""]
[null,null,null,null,null,null,null,null,null,null,null,null,null,null,null,null,null,null,""]
[null,121,null,null,"・",null,"・",null,null,"・",null,null,null,null,null,null,null,null,"",""]
[null,null,null,null,null,null,null,null,null,null,null,null,null,null,null,null,null,null,""]
[null,122,null,null,"・",null,"・",null,null,"・",null,null,null,null,null,null,null,null,"",""]
[null,null,null,null,null,null,null,null,null,null,null,null,null,null,null,null,null,null,""]
[null,123,null,null,"・",null,"・",null,null,"・",null,null,null,null,null,null,null,null,"",""]
[null,null,null,null,null,null,null,null,null,null,null,null,null,null,null,null,null,null,""]
[null,124,null,null,"・",null,"・",null,null,"・",null,null,null,null,null,null,null,null,"",""]
[null,null,null,null,null,null,null,null,null,null,null,null,null,null,null,null,null,null,""]
[null,125,null,null,"・",null,"・",null,null,"・",null,null,null,null,null,null,null,null,"",""]
[null,null,null,null,null,null,null,null,null,null,null,null,null,null,null,null,null,null,""]
[null,126,null,null,"・",null,"・",null,null,"・",null,null,null,null,null,null,null,null,"",""]
[null,null,null,null,null,null,null,null,null,null,null,null,null,null,null,null,null,null,""]
[null,127,null,null,"・",null,"・",null,null,"・",null,null,null,null,null,null,null,null,"",""]
[null,null,null,null,null,null,null,null,null,null,null,null,null,null,null,null,null,null,""]
[null,128,null,null,"・",null,"・",null,null,"・",null,null,null,null,null,null,null,null,"",""]
[null,null,null,null,null,null,null,null,null,null,null,null,null,null,null,null,null,null,""]
[null,129,null,null,"・",null,"・",null,null,"・",null,null,null,null,null,null,null,null,"",""]
[null,null,null,null,null,null,null,null,null,null,null,null,null,null,null,null,null,null,""]
[null,130,null,null,"・",null,"・",null,null,"・",null,null,null,null,null,null,null,null,"",""]
[null,null,null,null,null,null,null,null,null,null,null,null,null,null,null,null,null,null,""]
[null,131,null,null,"・",null,"・",null,null,"・",null,null,null,null,null,null,null,null,"",""]
[null,null,null,null,null,null,null,null,null,null,null,null,null,null,null,null,null,null,""]
[null,132,null,null,"・",null,"・",null,null,"・",null,null,null,null,null,null,null,null,"",""]
[null,null,null,null,null,null,null,null,null,null,null,null,null,null,null,null,null,null,""]
[null,133,null,null,"・",null,"・",null,null,"・",null,null,null,null,null,null,null,null,"",""]
[null,null,null,null,null,null,null,null,null,null,null,null,null,null,null,null,null,null,""]
[null,134,null,null,"・",null,"・",null,null,"・",null,null,null,null,null,null,null,null,"",""]
[null,null,null,null,null,null,null,null,null,null,null,null,null,null,null,null,null,null,""]
[null,135,null,null,"・",null,"・",null,null,"・",null,null,null,null,null,null,null,null,"",""]
[null,null,null,null,null,null,null,null,null,null,null,null,null,null,null,null,null,null,""]
[null,136,null,null,"・",null,"・",null,null,"・",null,null,null,null,null,null,null,null,"",""]
[null,null,null,null,null,null,null,null,null,null,null,null,null,null,null,null,null,null,""]
[null,137,null,null,"・",null,"・",null,null,"・",null,null,null,null,null,null,null,null,"",""]
[null,null,null,null,null,null,null,null,null,null,null,null,null,null,null,null,null,null,""]
[null,138,null,null,"・",null,"・",null,null,"・",null,null,null,null,null,null,null,null,"",""]
[null,null,null,null,null,null,null,null,null,null,null,null,null,null,null,null,null,null,""]
[null,139,null,null,"・",null,"・",null,null,"・",null,null,null,null,null,null,null,null,"",""]
[null,null,null,null,null,null,null,null,null,null,null,null,null,null,null,null,null,null,""]
[null,140,null,null,"・",null,"・",null,null,"・",null,null,null,null,null,null,null,null,"",""]
[null,null,null,null,null,null,null,null,null,null,null,null,null,null,null,null,null,null,""]
[null,141,null,null,"・",null,"・",null,null,"・",null,null,null,null,null,null,null,null,"",""]
[null,null,null,null,null,null,null,null,null,null,null,null,null,null,null,null,null,null,""]
[null,142,null,null,"・",null,"・",null,null,"・",null,null,null,null,null,null,null,null,"",""]
[null,null,null,null,null,null,null,null,null,null,null,null,null,null,null,null,null,null,""]
[null,143,null,null,"・",null,"・",null,null,"・",null,null,null,null,null,null,null,null,"",""]
[null,null,null,null,null,null,null,null,null,null,null,null,null,null,null,null,null,null,""]
[null,144,null,null,"・",null,"・",null,null,"・",null,null,null,null,null,null,null,null,"",""]
[null,null,null,null,null,null,null,null,null,null,null,null,null,null,null,null,null,null,""]
[null,145,null,null,"・",null,"・",null,null,"・",null,null,null,null,null,null,null,null,"",""]
[null,null,null,null,null,null,null,null,null,null,null,null,null,null,null,null,null,null,""]
[null,146,null,null,"・",null,"・",null,null,"・",null,null,null,null,null,null,null,null,"",""]
[null,null,null,null,null,null,null,null,null,null,null,null,null,null,null,null,null,null,""]
[null,147,null,null,"・",null,"・",null,null,"・",null,null,null,null,null,null,null,null,"",""]
[null,null,null,null,null,null,null,null,null,null,null,null,null,null,null,null,null,null,""]
[null,148,null,null,"・",null,"・",null,null,"・",null,null,null,null,null,null,null,null,"",""]
[null,null,null,null,null,null,null,null,null,null,null,null,null,null,null,null,null,null,""]
[null,149,null,null,"・",null,"・",null,null,"・",null,null,null,null,null,null,null,null,"",""]
[null,null,null,null,null,null,null,null,null,null,null,null,null,null,null,null,null,null,""]
[null,150,null,null,"・",null,"・",null,null,"・",null,null,null,null,null,null,null,null,"",""]
[null,null,null,null,null,null,null,null,null,null,null,null,null,null,null,null,null,null,""]
[null,151,null,null,"・",null,"・",null,null,"・",null,null,null,null,null,null,null,null,"",""]
[null,null,null,null,null,null,null,null,null,null,null,null,null,null,null,null,null,null,""]
[null,152,null,null,"・",null,"・",null,null,"・",null,null,null,null,null,null,null,null,"",""]
[null,null,null,null,null,null,null,null,null,null,null,null,null,null,null,null,null,null,""]
[null,153,null,null,"・",null,"・",null,null,"・",null,null,null,null,null,null,null,null,"",""]
[null,null,null,null,null,null,null,null,null,null,null,null,null,null,null,null,null,null,""]
[null,154,null,null,"・",null,"・",null,null,"・",null,null,null,null,null,null,null,null,"",""]
[null,null,null,null,null,null,null,null,null,null,null,null,null,null,null,null,null,null,""]
[null,155,null,null,"・",null,"・",null,null,"・",null,null,null,null,null,null,null,null,"",""]
[null,null,null,null,null,null,null,null,null,null,null,null,null,null,null,null,null,null,""]
[null,156,null,null,"・",null,"・",null,null,"・",null,null,null,null,null,null,null,null,"",""]
[null,null,null,null,null,null,null,null,null,null,null,null,null,null,null,null,null,null,""]
[null,157,null,null,"・",null,"・",null,null,"・",null,null,null,null,null,null,null,null,"",""]
[null,null,null,null,null,null,null,null,null,null,null,null,null,null,null,null,null,null,""]
[null,158,null,null,"・",null,"・",null,null,"・",null,null,null,null,null,null,null,null,"",""]
[null,null,null,null,null,null,null,null,null,null,null,null,null,null,null,null,null,null,""]
[null,159,null,null,"・",null,"・",null,null,"・",null,null,null,null,null,null,null,null,"",""]
[null,null,null,null,null,null,null,null,null,null,null,null,null,null,null,null,null,null,""]
[null,160,null,null,"・",null,"・",null,null,"・",null,null,null,null,null,null,null,null,"",""]
[null,null,null,null,null,null,null,null,null,null,null,null,null,null,null,null,null,null,""]
[null,161,null,null,"・",null,"・",null,null,"・",null,null,null,null,null,null,null,null,"",""]
[null,null,null,null,null,null,null,null,null,null,null,null,null,null,null,null,null,null,""]
[null,162,null,null,"・",null,"・",null,null,"・",null,null,null,null,null,null,null,null,"",""]
[null,null,null,null,null,null,null,null,null,null,null,null,null,null,null,null,null,null,""]
[null,163,null,null,"・",null,"・",null,null,"・",null,null,null,null,null,null,null,null,"",""]
[null,null,null,null,null,null,null,null,null,null,null,null,null,null,null,null,null,null,""]
[null,164,null,null,"・",null,"・",null,null,"・",null,null,null,null,null,null,null,null,"",""]
[null,null,null,null,null,null,null,null,null,null,null,null,null,null,null,null,null,null,""]
[null,165,null,null,"・",null,"・",null,null,"・",null,null,null,null,null,null,null,null,"",""]
[null,null,null,null,null,null,null,null,null,null,null,null,null,null,null,null,null,null,""]
[null,166,null,null,"・",null,"・",null,null,"・",null,null,null,null,null,null,null,null,"",""]
[null,null,null,null,null,null,null,null,null,null,null,null,null,null,null,null,null,null,""]
[null,167,null,null,"・",null,"・",null,null,"・",null,null,null,null,null,null,null,null,"",""]
[null,null,null,null,null,null,null,null,null,null,null,null,null,null,null,null,null,null,""]
[null,168,null,null,"・",null,"・",null,null,"・",null,null,null,null,null,null,null,null,"",""]
[null,null,null,null,null,null,null,null,null,null,null,null,null,null,null,null,null,null,""]
[null,169,null,null,"・",null,"・",null,null,"・",null,null,null,null,null,null,null,null,"",""]
[null,null,null,null,null,null,null,null,null,null,null,null,null,null,null,null,null,null,""]
[null,170,null,null,"・",null,"・",null,null,"・",null,null,null,null,null,null,null,null,"",""]
[null,null,null,null,null,null,null,null,null,null,null,null,null,null,null,null,null,null,""]
[null,171,null,null,"・",null,"・",null,null,"・",null,null,null,null,null,null,null,null,"",""]
[null,null,null,null,null,null,null,null,null,null,null,null,null,null,null,null,null,null,""]
[null,172,null,null,"・",null,"・",null,null,"・",null,null,null,null,null,null,null,null,"",""]
[null,null,null,null,null,null,null,null,null,null,null,null,null,null,null,null,null,null,""]
[null,173,null,null,"・",null,"・",null,null,"・",null,null,null,null,null,null,null,null,"",""]
[null,null,null,null,null,null,null,null,null,null,null,null,null,null,null,null,null,null,""]
[null,174,null,null,"・",null,"・",null,null,"・",null,null,null,null,null,null,null,null,"",""]
[null,null,null,null,null,null,null,null,null,null,null,null,null,null,null,null,null,null,""]
[null,175,null,null,"・",null,"・",null,null,"・",null,null,null,null,null,null,null,null,"",""]
[null,null,null,null,null,null,null,null,null,null,null,null,null,null,null,null,null,null,""]
[null,176,null,null,"・",null,"・",null,null,"・",null,null,null,null,null,null,null,null,"",""]
[null,null,null,null,null,null,null,null,null,null,null,null,null,null,null,null,null,null,""]
[null,177,null,null,"・",null,"・",null,null,"・",null,null,null,null,null,null,null,null,"",""]
[null,null,null,null,null,null,null,null,null,null,null,null,null,null,null,null,null,null,""]
[null,178,null,null,"・",null,"・",null,null,"・",null,null,null,null,null,null,null,null,"",""]
[null,null,null,null,null,null,null,null,null,null,null,null,null,null,null,null,null,null,""]
[null,179,null,null,"・",null,"・",null,null,"・",null,null,null,null,null,null,null,null,"",""]
[null,null,null,null,null,null,null,null,null,null,null,null,null,null,null,null,null,null,""]
[null,180,null,null,"・",null,"・",null,null,"・",null,null,null,null,null,null,null,null,"",""]
[null,null,null,null,null,null,null,null,null,null,null,null,null,null,null,null,null,null,""]
[null,181,null,null,"・",null,"・",null,null,"・",null,null,null,null,null,null,null,null,"",""]
[null,null,null,null,null,null,null,null,null,null,null,null,null,null,null,null,null,null,""]
[null,182,null,null,"・",null,"・",null,null,"・",null,null,null,null,null,null,null,null,"",""]
[null,null,null,null,null,null,null,null,null,null,null,null,null,null,null,null,null,null,""]
[null,183,null,null,"・",null,"・",null,null,"・",null,null,null,null,null,null,null,null,"",""]
[null,null,null,null,null,null,null,null,null,null,null,null,null,null,null,null,null,null,""]
[null,184,null,null,"・",null,"・",null,null,"・",null,null,null,null,null,null,null,null,"",""]
[null,null,null,null,null,null,null,null,null,null,null,null,null,null,null,null,null,null,""]
[null,185,null,null,"・",null,"・",null,null,"・",null,null,null,null,null,null,null,null,"",""]
[null,null,null,null,null,null,null,null,null,null,null,null,null,null,null,null,null,null,""]
[null,186,null,null,"・",null,"・",null,null,"・",null,null,null,null,null,null,null,null,"",""]
[null,null,null,null,null,null,null,null,null,null,null,null,null,null,null,null,null,null,""]
[null,187,null,null,"・",null,"・",null,null,"・",null,null,null,null,null,null,null,null,"",""]
[null,null,null,null,null,null,null,null,null,null,null,null,null,null,null,null,null,null,""]
[null,188,null,null,"・",null,"・",null,null,"・",null,null,null,null,null,null,null,null,"",""]
[null,null,null,null,null,null,null,null,null,null,null,null,null,null,null,null,null,null,""]
[null,189,null,null,"・",null,"・",null,null,"・",null,null,null,null,null,null,null,null,"",""]
[null,null,null,null,null,null,null,null,null,null,null,null,null,null,null,null,null,null,""]
[null,190,null,null,"・",null,"・",null,null,"・",null,null,null,null,null,null,null,null,"",""]
[null,null,null,null,null,null,null,null,null,null,null,null,null,null,null,null,null,null,""]
[null,191,null,null,"・",null,"・",null,null,"・",null,null,null,null,null,null,null,null,"",""]
[null,null,null,null,null,null,null,null,null,null,null,null,null,null,null,null,null,null,""]
[null,192,null,null,"・",null,"・",null,null,"・",null,null,null,null,null,null,null,null,"",""]
[null,null,null,null,null,null,null,null,null,null,null,null,null,null,null,null,null,null,""]
[null,193,null,null,"・",null,"・",null,null,"・",null,null,null,null,null,null,null,null,"",""]
[null,null,null,null,null,null,null,null,null,null,null,null,null,null,null,null,null,null,""]
[null,194,null,null,"・",null,"・",null,null,"・",null,null,null,null,null,null,null,null,"",""]
[null,null,null,null,null,null,null,null,null,null,null,null,null,null,null,null,null,null,""]
[null,195,null,null,"・",null,"・",null,null,"・",null,null,null,null,null,null,null,null,"",""]
[null,null,null,null,null,null,null,null,null,null,null,null,null,null,null,null,null,null,""]
[null,196,null,null,"・",null,"・",null,null,"・",null,null,null,null,null,null,null,null,"",""]
[null,null,null,null,null,null,null,null,null,null,null,null,null,null,null,null,null,null,""]
[null,197,null,null,"・",null,"・",null,null,"・",null,null,null,null,null,null,null,null,"",""]
[null,null,null,null,null,null,null,null,null,null,null,null,null,null,null,null,null,null,""]
[null,198,null,null,"・",null,"・",null,null,"・",null,null,null,null,null,null,null,null,"",""]
[null,null,null,null,null,null,null,null,null,null,null,null,null,null,null,null,null,null,""]
[null,199,null,null,"・",null,"・",null,null,"・",null,null,null,null,null,null,null,null,"",""]
[null,null,null,null,null,null,null,null,null,null,null,null,null,null,null,null,null,null,""]
[null,200,null,null,"・",null,"・",null,null,"・",null,null,null,null,null,null,null,null,"",""]
[null,null,null,null,null,null,null,null,null,null,null,null,null,null,null,null,null,null,""]
[null,201,null,null,"・",null,"・",null,null,"・",null,null,null,null,null,null,null,null,"",""]
[null,null,null,null,null,null,null,null,null,null,null,null,null,null,null,null,null,null,""]
[null,202,null,null,"・",null,"・",null,null,"・",null,null,null,null,null,null,null,null,"",""]
[null,null,null,null,null,null,null,null,null,null,null,null,null,null,null,null,null,null,""]
[null,203,null,null,"・",null,"・",null,null,"・",null,null,null,null,null,null,null,null,"",""]
[null,null,null,null,null,null,null,null,null,null,null,null,null,null,null,null,null,null,""]
[null,204,null,null,"・",null,"・",null,null,"・",null,null,null,null,null,null,null,null,"",""]
[null,null,null,null,null,null,null,null,null,null,null,null,null,null,null,null,null,null,""]
[null,205,null,null,"・",null,"・",null,null,"・",null,null,null,null,null,null,null,null,"",""]
[null,null,null,null,null,null,null,null,null,null,null,null,null,null,null,null,null,null,""]
[null,206,null,null,"・",null,"・",null,null,"・",null,null,null,null,null,null,null,null,"",""]
[null,null,null,null,null,null,null,null,null,null,null,null,null,null,null,null,null,null,""]
[null,207,null,null,"・",null,"・",null,null,"・",null,null,null,null,null,null,null,null,"",""]
[null,null,null,null,null,null,null,null,null,null,null,null,null,null,null,null,null,null,""]
[null,208,null,null,"・",null,"・",null,null,"・",null,null,null,null,null,null,null,null,"",""]
[null,null,null,null,null,null,null,null,null,null,null,null,null,null,null,null,null,null,""]
[null,209,null,null,"・",null,"・",null,null,"・",null,null,null,null,null,null,null,null,"",""]
[null,null,null,null,null,null,null,null,null,null,null,null,null,null,null,null,null,null,""]
[null,210,null,null,"・",null,"・",null,null,"・",null,null,null,null,null,null,null,null,"",""]
[null,null,null,null,null,null,null,null,null,null,null,null,null,null,null,null,null,null,""]
[null,211,null,null,"・",null,"・",null,null,"・",null,null,null,null,null,null,null,null,"",""]
[null,null,null,null,null,null,null,null,null,null,null,null,null,null,null,null,null,null,""]
[null,212,null,null,"・",null,"・",null,null,"・",null,null,null,null,null,null,null,null,"",""]
[null,null,null,null,null,null,null,null,null,null,null,null,null,null,null,null,null,null,""]
[null,213,null,null,"・",null,"・",null,null,"・",null,null,null,null,null,null,null,null,"",""]
[null,null,null,null,null,null,null,null,null,null,null,null,null,null,null,null,null,null,""]
[null,214,null,null,"・",null,"・",null,null,"・",null,null,null,null,null,null,null,null,"",""]
[null,null,null,null,null,null,null,null,null,null,null,null,null,null,null,null,null,null,""]
[null,215,null,null,"・",null,"・",null,null,"・",null,null,null,null,null,null,null,null,"",""]
[null,null,null,null,null,null,null,null,null,null,null,null,null,null,null,null,null,null,""]
[null,216,null,null,"・",null,"・",null,null,"・",null,null,null,null,null,null,null,null,"",""]
[null,null,null,null,null,null,null,null,null,null,null,null,null,null,null,null,null,null,""]
[null,217,null,null,"・",null,"・",null,null,"・",null,null,null,null,null,null,null,null,"",""]
[null,null,null,null,null,null,null,null,null,null,null,null,null,null,null,null,null,null,""]
[null,218,null,null,"・",null,"・",null,null,"・",null,null,null,null,null,null,null,null,"",""]
[null,null,null,null,null,null,null,null,null,null,null,null,null,null,null,null,null,null,""]
[null,219,null,null,"・",null,"・",null,null,"・",null,null,null,null,null,null,null,null,"",""]
[null,null,null,null,null,null,null,null,null,null,null,null,null,null,null,null,null,null,""]
[null,220,null,null,"・",null,"・",null,null,"・",null,null,null,null,null,null,null,null,"",""]
[null,null,null,null,null,null,null,null,null,null,null,null,null,null,null,null,null,null,""]
[null,221,null,null,"・",null,"・",null,null,"・",null,null,null,null,null,null,null,null,"",""]
[null,null,null,null,null,null,null,null,null,null,null,null,null,null,null,null,null,null,""]
[null,222,null,null,"・",null,"・",null,null,"・",null,null,null,null,null,null,null,null,"",""]
[null,null,null,null,null,null,null,null,null,null,null,null,null,null,null,null,null,null,""]
[null,223,null,null,"・",null,"・",null,null,"・",null,null,null,null,null,null,null,null,"",""]
[null,null,null,null,null,null,null,null,null,null,null,null,null,null,null,null,null,null,""]
[null,224,null,null,"・",null,"・",null,null,"・",null,null,null,null,null,null,null,null,"",""]
[null,null,null,null,null,null,null,null,null,null,null,null,null,null,null,null,null,null,""]
[null,225,null,null,"・",null,"・",null,null,"・",null,null,null,null,null,null,null,null,"",""]
[null,null,null,null,null,null,null,null,null,null,null,null,null,null,null,null,null,null,""]
[null,226,null,null,"・",null,"・",null,null,"・",null,null,null,null,null,null,null,null,"",""]
[null,null,null,null,null,null,null,null,null,null,null,null,null,null,null,null,null,null,""]
[null,227,null,null,"・",null,"・",null,null,"・",null,null,null,null,null,null,null,null,"",""]
[null,null,null,null,null,null,null,null,null,null,null,null,null,null,null,null,null,null,""]
[null,228,null,null,"・",null,"・",null,null,"・",null,null,null,null,null,null,null,null,"",""]
[null,null,null,null,null,null,null,null,null,null,null,null,null,null,null,null,null,null,""]
[null,229,null,null,"・",null,"・",null,null,"・",null,null,null,null,null,null,null,null,"",""]
[null,null,null,null,null,null,null,null,null,null,null,null,null,null,null,null,null,null,""]
[null,230,null,null,"・",null,"・",null,null,"・",null,null,null,null,null,null,null,null,"",""]
[null,null,null,null,null,null,null,null,null,null,null,null,null,null,null,null,null,null,""]
[null,231,null,null,"・",null,"・",null,null,"・",null,null,null,null,null,null,null,null,"",""]
[null,null,null,null,null,null,null,null,null,null,null,null,null,null,null,null,null,null,""]
[null,232,null,null,"・",null,"・",null,null,"・",null,null,null,null,null,null,null,null,"",""]
[null,null,null,null,null,null,null,null,null,null,null,null,null,null,null,null,null,null,""]
[null,233,null,null,"・",null,"・",null,null,"・",null,null,null,null,null,null,null,null,"",""]
[null,null,null,null,null,null,null,null,null,null,null,null,null,null,null,null,null,null,""]
[null,234,null,null,"・",null,"・",null,null,"・",null,null,null,null,null,null,null,null,"",""]
[null,null,null,null,null,null,null,null,null,null,null,null,null,null,null,null,null,null,""]
[null,235,null,null,"・",null,"・",null,null,"・",null,null,null,null,null,null,null,null,"",""]
[null,null,null,null,null,null,null,null,null,null,null,null,null,null,null,null,null,null,""]
[null,236,null,null,"・",null,"・",null,null,"・",null,null,null,null,null,null,null,null,"",""]
[null,null,null,null,null,null,null,null,null,null,null,null,null,null,null,null,null,null,""]
[null,237,null,null,"・",null,"・",null,null,"・",null,null,null,null,null,null,null,null,"",""]
[null,null,null,null,null,null,null,null,null,null,null,null,null,null,null,null,null,null,""]
[null,238,null,null,"・",null,"・",null,null,"・",null,null,null,null,null,null,null,null,"",""]
[null,null,null,null,null,null,null,null,null,null,null,null,null,null,null,null,null,null,""]
[null,239,null,null,"・",null,"・",null,null,"・",null,null,null,null,null,null,null,null,"",""]
[null,null,null,null,null,null,null,null,null,null,null,null,null,null,null,null,null,null,""]
[null,240,null,null,"・",null,"・",null,null,"・",null,null,null,null,null,null,null,null,"",""]
[null,null,null,null,null,null,null,null,null,null,null,null,null,null,null,null,null,null,""]
[null,241,null,null,"・",null,"・",null,null,"・",null,null,null,null,null,null,null,null,"",""]
[null,null,null,null,null,null,null,null,null,null,null,null,null,null,null,null,null,null,""]
[null,242,null,null,"・",null,"・",null,null,"・",null,null,null,null,null,null,null,null,"",""]
[null,null,null,null,null,null,null,null,null,null,null,null,null,null,null,null,null,null,""]
[null,243,null,null,"・",null,"・",null,null,"・",null,null,null,null,null,null,null,null,"",""]
[null,null,null,null,null,null,null,null,null,null,null,null,null,null,null,null,null,null,""]
[null,244,null,null,"・",null,"・",null,null,"・",null,null,null,null,null,null,null,null,"",""]
[null,null,null,null,null,null,null,null,null,null,null,null,null,null,null,null,null,null,""]
[null,245,null,null,"・",null,"・",null,null,"・",null,null,null,null,null,null,null,null,"",""]
[null,null,null,null,null,null,null,null,null,null,null,null,null,null,null,null,null,null,""]
[null,246,null,null,"・",null,"・",null,null,"・",null,null,null,null,null,null,null,null,"",""]
[null,null,null,null,null,null,null,null,null,null,null,null,null,null,null,null,null,null,""]
[null,247,null,null,"・",null,"・",null,null,"・",null,null,null,null,null,null,null,null,"",""]
[null,null,null,null,null,null,null,null,null,null,null,null,null,null,null,null,null,null,""]
[null,248,null,null,"・",null,"・",null,null,"・",null,null,null,null,null,null,null,null,"",""]
[null,null,null,null,null,null,null,null,null,null,null,null,null,null,null,null,null,null,""]
[null,249,null,null,"・",null,"・",null,null,"・",null,null,null,null,null,null,null,null,"",""]
[null,null,null,null,null,null,null,null,null,null,null,null,null,null,null,null,null,null,""]
[null,250,null,null,"・",null,"・",null,null,"・",null,null,null,null,null,null,null,null,"",""]
[null,null,null,null,null,null,null,null,null,null,null,null,null,null,null,null,null,null,""]
[null,251,null,null,"・",null,"・",null,null,"・",null,null,null,null,null,null,null,null,"",""]
[null,null,null,null,null,null,null,null,null,null,null,null,null,null,null,null,null,null,""]
[null,252,null,null,"・",null,"・",null,null,"・",null,null,null,null,null,null,null,null,"",""]
[null,null,null,null,null,null,null,null,null,null,null,null,null,null,null,null,null,null,""]
[null,253,null,null,"・",null,"・",null,null,"・",null,null,null,null,null,null,null,null,"",""]
[null,null,null,null,null,null,null,null,null,null,null,null,null,null,null,null,null,null,""]
[null,254,null,null,"・",null,"・",null,null,"・",null,null,null,null,null,null,null,null,"",""]
[null,null,null,null,null,null,null,null,null,null,null,null,null,null,null,null,null,null,""]
[null,255,null,null,"・",null,"・",null,null,"・",null,null,null,null,null,null,null,null,"",""]
[null,null,null,null,null,null,null,null,null,null,null,null,null,null,null,null,null,null,""]
[null,256,null,null,"・",null,"・",null,null,"・",null,null,null,null,null,null,null,null,"",""]
[null,null,null,null,null,null,null,null,null,null,null,null,null,null,null,null,null,null,""]
[null,257,null,null,"・",null,"・",null,null,"・",null,null,null,null,null,null,null,null,"",""]
[null,null,null,null,null,null,null,null,null,null,null,null,null,null,null,null,null,null,""]
[null,258,null,null,"・",null,"・",null,null,"・",null,null,null,null,null,null,null,null,"",""]
[null,null,null,null,null,null,null,null,null,null,null,null,null,null,null,null,null,null,""]
[null,259,null,null,"・",null,"・",null,null,"・",null,null,null,null,null,null,null,null,"",""]
[null,null,null,null,null,null,null,null,null,null,null,null,null,null,null,null,null,null,""]
[null,260,null,null,"・",null,"・",null,null,"・",null,null,null,null,null,null,null,null,"",""]
[null,null,null,null,null,null,null,null,null,null,null,null,null,null,null,null,null,null,""]
[null,261,null,null,"・",null,"・",null,null,"・",null,null,null,null,null,null,null,null,"",""]
[null,null,null,null,null,null,null,null,null,null,null,null,null,null,null,null,null,null,""]
[null,262,null,null,"・",null,"・",null,null,"・",null,null,null,null,null,null,null,null,"",""]
[null,null,null,null,null,null,null,null,null,null,null,null,null,null,null,null,null,null,""]
[null,263,null,null,"・",null,"・",null,null,"・",null,null,null,null,null,null,null,null,"",""]
[null,null,null,null,null,null,null,null,null,null,null,null,null,null,null,null,null,null,""]
[null,264,null,null,"・",null,"・",null,null,"・",null,null,null,null,null,null,null,null,"",""]
[null,null,null,null,null,null,null,null,null,null,null,null,null,null,null,null,null,null,""]
[null,265,null,null,"・",null,"・",null,null,"・",null,null,null,null,null,null,null,null,"",""]
[null,null,null,null,null,null,null,null,null,null,null,null,null,null,null,null,null,null,""]
[null,266,null,null,"・",null,"・",null,null,"・",null,null,null,null,null,null,null,null,"",""]
[null,null,null,null,null,null,null,null,null,null,null,null,null,null,null,null,null,null,""]
[null,267,null,null,"・",null,"・",null,null,"・",null,null,null,null,null,null,null,null,"",""]
[null,null,null,null,null,null,null,null,null,null,null,null,null,null,null,null,null,null,""]
[null,268,null,null,"・",null,"・",null,null,"・",null,null,null,null,null,null,null,null,"",""]
[null,null,null,null,null,null,null,null,null,null,null,null,null,null,null,null,null,null,""]
[null,269,null,null,"・",null,"・",null,null,"・",null,null,null,null,null,null,null,null,"",""]
[null,null,null,null,null,null,null,null,null,null,null,null,null,null,null,null,null,null,""]
[null,270,null,null,"・",null,"・",null,null,"・",null,null,null,null,null,null,null,null,"",""]
[null,null,null,null,null,null,null,null,null,null,null,null,null,null,null,null,null,null,""]
[null,271,null,null,"・",null,"・",null,null,"・",null,null,null,null,null,null,null,null,"",""]
[null,null,null,null,null,null,null,null,null,null,null,null,null,null,null,null,null,null,""]
[null,272,null,null,"・",null,"・",null,null,"・",null,null,null,null,null,null,null,null,"",""]
[null,null,null,null,null,null,null,null,null,null,null,null,null,null,null,null,null,null,""]
[null,273,null,null,"・",null,"・",null,null,"・",null,null,null,null,null,null,null,null,"",""]
[null,null,null,null,null,null,null,null,null,null,null,null,null,null,null,null,null,null,""]
[null,274,null,null,"・",null,"・",null,null,"・",null,null,null,null,null,null,null,null,"",""]
[null,null,null,null,null,null,null,null,null,null,null,null,null,null,null,null,null,null,""]
[null,275,null,null,"・",null,"・",null,null,"・",null,null,null,null,null,null,null,null,"",""]
[null,null,null,null,null,null,null,null,null,null,null,null,null,null,null,null,null,null,""]
[null,276,null,null,"・",null,"・",null,null,"・",null,null,null,null,null,null,null,null,"",""]
[null,null,null,null,null,null,null,null,null,null,null,null,null,null,null,null,null,null,""]
[null,277,null,null,"・",null,"・",null,null,"・",null,null,null,null,null,null,null,null,"",""]
[null,null,null,null,null,null,null,null,null,null,null,null,null,null,null,null,null,null,""]
[null,278,null,null,"・",null,"・",null,null,"・",null,null,null,null,null,null,null,null,"",""]
[null,null,null,null,null,null,null,null,null,null,null,null,null,null,null,null,null,null,""]
[null,279,null,null,"・",null,"・",null,null,"・",null,null,null,null,null,null,null,null,"",""]
[null,null,null,null,null,null,null,null,null,null,null,null,null,null,null,null,null,null,""]
[null,280,null,null,"・",null,"・",null,null,"・",null,null,null,null,null,null,null,null,"",""]
[null,null,null,null,null,null,null,null,null,null,null,null,null,null,null,null,null,null,""]
[null,281,null,null,"・",null,"・",null,null,"・",null,null,null,null,null,null,null,null,"",""]
[null,null,null,null,null,null,null,null,null,null,null,null,null,null,null,null,null,null,""]
[null,282,null,null,"・",null,"・",null,null,"・",null,null,null,null,null,null,null,null,"",""]
[null,null,null,null,null,null,null,null,null,null,null,null,null,null,null,null,null,null,""]
[null,283,null,null,"・",null,"・",null,null,"・",null,null,null,null,null,null,null,null,"",""]
[null,null,null,null,null,null,null,null,null,null,null,null,null,null,null,null,null,null,""]
[null,284,null,null,"・",null,"・",null,null,"・",null,null,null,null,null,null,null,null,"",""]
[null,null,null,null,null,null,null,null,null,null,null,null,null,null,null,null,null,null,""]
[null,285,null,null,"・",null,"・",null,null,"・",null,null,null,null,null,null,null,null,"",""]
[null,null,null,null,null,null,null,null,null,null,null,null,null,null,null,null,null,null,""]
[null,286,null,null,"・",null,"・",null,null,"・",null,null,null,null,null,null,null,null,"",""]
[null,null,null,null,null,null,null,null,null,null,null,null,null,null,null,null,null,null,""]
[null,287,null,null,"・",null,"・",null,null,"・",null,null,null,null,null,null,null,null,"",""]
[null,null,null,null,null,null,null,null,null,null,null,null,null,null,null,null,null,null,""]
[null,288,null,null,"・",null,"・",null,null,"・",null,null,null,null,null,null,null,null,"",""]
[null,null,null,null,null,null,null,null,null,null,null,null,null,null,null,null,null,null,""]
[null,289,null,null,"・",null,"・",null,null,"・",null,null,null,null,null,null,null,null,"",""]
[null,null,null,null,null,null,null,null,null,null,null,null,null,null,null,null,null,null,""]
[null,290,null,null,"・",null,"・",null,null,"・",null,null,null,null,null,null,null,null,"",""]
[null,null,null,null,null,null,null,null,null,null,null,null,null,null,null,null,null,null,""]
[null,291,null,null,"・",null,"・",null,null,"・",null,null,null,null,null,null,null,null,"",""]
[null,null,null,null,null,null,null,null,null,null,null,null,null,null,null,null,null,null,""]
[null,292,null,null,"・",null,"・",null,null,"・",null,null,null,null,null,null,null,null,"",""]
[null,null,null,null,null,null,null,null,null,null,null,null,null,null,null,null,null,null,""]
[null,293,null,null,"・",null,"・",null,null,"・",null,null,null,null,null,null,null,null,"",""]
[null,null,null,null,null,null,null,null,null,null,null,null,null,null,null,null,null,null,""]
[null,294,null,null,"・",null,"・",null,null,"・",null,null,null,null,null,null,null,null,"",""]
[null,null,null,null,null,null,null,null,null,null,null,null,null,null,null,null,null,null,""]
[null,295,null,null,"・",null,"・",null,null,"・",null,null,null,null,null,null,null,null,"",""]
[null,null,null,null,null,null,null,null,null,null,null,null,null,null,null,null,null,null,""]
[null,296,null,null,"・",null,"・",null,null,"・",null,null,null,null,null,null,null,null,"",""]
[null,null,null,null,null,null,null,null,null,null,null,null,null,null,null,null,null,null,""]
[null,297,null,null,"・",null,"・",null,null,"・",null,null,null,null,null,null,null,null,"",""]
[null,null,null,null,null,null,null,null,null,null,null,null,null,null,null,null,null,null,""]
[null,298,null,null,"・",null,"・",null,null,"・",null,null,null,null,null,null,null,null,"",""]
[null,null,null,null,null,null,null,null,null,null,null,null,null,null,null,null,null,null,""]
[null,299,null,null,"・",null,"・",null,null,"・",null,null,null,null,null,null,null,null,"",""]
[null,null,null,null,null,null,null,null,null,null,null,null,null,null,null,null,null,null,""]
[null,300,null,null,"・",null,"・",null,null,"・",null,null,null,null,null,null,null,null,"",""]
[null,null,null,null,null,null,null,null,null,null,null,null,null,null,null,null,null,null,""]

{"sheet":"統括表","index":2,"n_rows":35,"n_cols":23,"rows_kept":35,"cut":false,"hidden":false,"merged":[[28,10,28,11],[28,13,28,17],[30,11,30,13],[32,11,32,13],[34,11,34,13],[30,14,30,18],[32,14,32,18],[34,14,34,18],[18,12,20,15],[16,12,17,15],[18,16,20,18],[16,16,17,18],[16,1,21,2],[21,3,21,15],[21,16,21,18],[26,4,26,10],[5,1,6,5],[13,1,13,5],[5,11,6,15],[12,11,12,15],[9,12,9,15],[8,12,8,15],[7,12,7,15],[18,3,20,5],[16,3,17,5],[18,10,20,11],[16,10,17,11],[12,2,12,5],[11,2,11,5],[10,2,10,5],[9,2,9,5],[1,1,1,18],[8,2,8,5],[7,2,7,5],[11,12,11,15],[10,12,10,15],[5,6,5,7],[6,6,6,7],[5,8,5,9],[6,8,6,9]]}
[]
[null,"第２３回　全九州卓球選手権大会（ラージボールの部）　申込統括表"]
[]
[null,"【シングルスの部】",null,null,null,null,null,null,null,null,null,"【ダブルスの部】"]
[]
[null,"種目",null,null,null,null,"男子",null,"女子",null,null,"種目",null,null,null,null,"男子","女子","混合"]
[null,null,null,null,null,null,"申込者数",null,"申込者数",null,null,null,null,null,null,null,"申込者数","申込者数","申込者数"]
[null,"A","４０～５９歳",null,null,null,{"$f":"COUNTIFS(シングルカテ,$B8,シングル性,LEFT(G$6))","v":0},{"$f":"COUNTIFS(シングルスＲ性,LEFT(G$6),シングルカテ,$B8)","v":0},0,{"$f":"COUNTIFS(シングルスＲ性,LEFT(I$6),シングルカテ,$B8)","v":0},null,"A","　８０～１１９歳",null,null,null,{"$f":"COUNTIFS(ダブルス性,LEFT(Q$6),ダブルスカテ,$L8)","v":0},0,0]
[null,"B","６０～６４歳",null,null,null,0,0,0,0,null,"B","１２０～１２９歳",null,null,null,0,0,0]
[null,"C","６５～６９歳",null,null,null,0,0,0,0,null,"C","１３０～１３９歳",null,null,null,0,0,0]
[null,"D","７０～７４歳",null,null,null,0,0,0,0,null,"D","１４０～１４９歳",null,null,null,0,0,0]
[null,"E","７５～７９歳",null,null,null,0,0,0,0,null,"E","１５０歳以上",null,null,null,0,0,0]
[null,"F","８０歳以上",null,null,null,0,0,0,0,null,"合計",null,null,null,null,{"$f":"SUM(Q8:Q12)","v":0},0,0]
[null,"合計",null,null,null,null,{"$f":"SUM(G8:G13)","v":0},0,0,0]
[]
[]
[null,"参加料合計",null,"シングルス",null,null,"男子",null,{"$f":"G14","v":0},null,{"$f":"I17+I18","v":0},null,"×２，０００円",null,null,null,{"$f":"K17*2000","v":0}]
[null,null,null,null,null,null,"女子",null,{"$f":"I14","v":0}]
[null,null,null,"ダブルス",null,null,"男子",null,{"$f":"Q13","v":0},null,{"$f":"SUM(I19:I21)","v":0},null,"×２，０００円",null,null,null,{"$f":"K19*2000","v":0}]
[null,null,null,null,null,null,"女子",null,{"$f":"R13","v":0}]
[null,null,null,null,null,null,"混合",null,{"$f":"S13","v":0}]
[null,null,null,"合計",null,null,null,null,null,null,null,null,null,null,null,null,{"$f":"SUM(Q17:S21)","v":0}]
[]
[]
[null,null,null,null,"上記の通り申し込みます。"]
[]
[null,null,null,null,"令和４年   月　　日"]
[null,null,null,null,null,null,null,null,null,null,null,null,null,null,null,null,null,null,null,null,null,"福岡","卓球協会"]
[null,null,null,null,null,null,null,null,null,null,"佐賀",null,"県",{"$f":"IF(K29=\"\",\"←県名を入力してください\",VLOOKUP(K29,$V$28:$W$35,2,FALSE))","v":"卓球協会"},null,null,null,null,null,null,null,"佐賀","卓球協会"]
[null,null,null,null,null,null,null,null,null,null,null,null,null,null,null,null,null,null,null,null,null,"長崎","卓球連盟"]
[null,null,null,null,null,null,null,null,null,null,null,"チーム名",null,null,null,null,null,null,null,null,null,"大分","卓球連盟"]
[null,null,null,null,null,null,null,null,null,null,null,null,null,null,null,null,null,null,null,null,null,"熊本","卓球協会"]
[null,null,null,null,null,null,null,null,null,null,null,"申込責任者",null,null,null,null,null,null,null,null,null,"宮崎","卓球協会"]
[null,null,null,null,null,null,null,null,null,null,null,null,null,null,null,null,null,null,null,null,null,"鹿児島","卓球連盟"]
[null,null,null,null,null,null,null,null,null,null,null,"連絡先（電話）",null,null,null,null,null,null,null,null,null,"沖縄","卓球協会"]